{"text_format":"3","workbook":"xlsx","n_sheets":2,"sheets":["list","data"],"not_rendered":{"external_links":1,"defined_names":9},"read":"whole","date_system":"1900"}

{"sheet":"list","index":0,"n_rows":110,"n_cols":14,"rows_kept":110}
["№","Фамилия","Имя","Отчество","Пол","Участник с ОВЗ","Класс","Класс участия","Балл","Макс. Балл","Статус","Призер МЭ прошлого года","Учитель","Место работы учителя"]
[{"$f":"'[1]Протокол ШЭ ВОШ по предмету ЛИТ'!A2","v":1},{"$f":"'[1]Протокол ШЭ ВОШ по предмету ЛИТ'!C2","v":"Киямова"},{"$f":"'[1]Протокол ШЭ ВОШ по предмету ЛИТ'!D2","v":"Аиша"},{"$f":"'[1]Протокол ШЭ ВОШ по предмету ЛИТ'!E2","v":"Руслановна"},{"$f":"'[1]Протокол ШЭ ВОШ по предмету ЛИТ'!G2","v":"ж"},{"$f":"'[1]Протокол ШЭ ВОШ по предмету ЛИТ'!H2","v":"нет"},{"$f":"'[1]Протокол ШЭ ВОШ по предмету ЛИТ'!I2","v":4},{"$f":"'[1]Протокол ШЭ ВОШ по предмету ЛИТ'!J2","v":4},{"$f":"'[1]Протокол ШЭ ВОШ по предмету ЛИТ'!K2","v":5},{"$f":"'[1]Протокол ШЭ ВОШ по предмету ЛИТ'!L2","v":8},{"$f":"'[1]Протокол ШЭ ВОШ по предмету ЛИТ'!M2","v":"победитель"},null,{"$f":"'[1]Протокол ШЭ ВОШ по предмету ЛИТ'!O2","v":"Хаметова Рамиля Раилевна"},{"$f":"'[1]Протокол ШЭ ВОШ по предмету ЛИТ'!P2","v":"Муниципальное бюджетное общеобразовательное учреждение \"Многопрофильный лицей №37\" Нижнекамского муниципального района Республики Татарстан"}]
[{"$f":"'[1]Протокол ШЭ ВОШ по предмету ЛИТ'!A3","v":2},{"$f":"'[1]Протокол ШЭ ВОШ по предмету ЛИТ'!C3","v":"Клипова"},{"$f":"'[1]Протокол ШЭ ВОШ по предмету ЛИТ'!D3","v":"Екатерина"},{"$f":"'[1]Протокол ШЭ ВОШ по предмету ЛИТ'!E3","v":"Сергеевна"},{"$f":"'[1]Протокол ШЭ ВОШ по предмету ЛИТ'!G3","v":"ж"},{"$f":"'[1]Протокол ШЭ ВОШ по предмету ЛИТ'!H3","v":"нет"},{"$f":"'[1]Протокол ШЭ ВОШ по предмету ЛИТ'!I3","v":4},{"$f":"'[1]Протокол ШЭ ВОШ по предмету ЛИТ'!J3","v":4},{"$f":"'[1]Протокол ШЭ ВОШ по предмету ЛИТ'!K3","v":4},{"$f":"'[1]Протокол ШЭ ВОШ по предмету ЛИТ'!L3","v":8},{"$f":"'[1]Протокол ШЭ ВОШ по предмету ЛИТ'!M3","v":"призер"},null,{"$f":"'[1]Протокол ШЭ ВОШ по предмету ЛИТ'!O3","v":"Конева Валентина Викторовна"},{"$f":"'[1]Протокол ШЭ ВОШ по предмету ЛИТ'!P3","v":"Муниципальное бюджетное общеобразовательное учреждение \"Многопрофильный лицей №37\" Нижнекамского муниципального района Республики Татарстан"}]
[{"$f":"'[1]Протокол ШЭ ВОШ по предмету ЛИТ'!A4","v":3},{"$f":"'[1]Протокол ШЭ ВОШ по предмету ЛИТ'!C4","v":"Ахунова"},{"$f":"'[1]Протокол ШЭ ВОШ по предмету ЛИТ'!D4","v":"Каролина"},{"$f":"'[1]Протокол ШЭ ВОШ по предмету ЛИТ'!E4","v":"Эльвировна"},{"$f":"'[1]Протокол ШЭ ВОШ по предмету ЛИТ'!G4","v":"ж"},{"$f":"'[1]Протокол ШЭ ВОШ по предмету ЛИТ'!H4","v":"нет"},{"$f":"'[1]Протокол ШЭ ВОШ по предмету ЛИТ'!I4","v":4},{"$f":"'[1]Протокол ШЭ ВОШ по предмету ЛИТ'!J4","v":4},{"$f":"'[1]Протокол ШЭ ВОШ по предмету ЛИТ'!K4","v":3},{"$f":"'[1]Протокол ШЭ ВОШ по предмету ЛИТ'!L4","v":8},{"$f":"'[1]Протокол ШЭ ВОШ по предмету ЛИТ'!M4","v":"призер"},null,{"$f":"'[1]Протокол ШЭ ВОШ по предмету ЛИТ'!O4","v":"Хамадеева Гузель Камилевна"},{"$f":"'[1]Протокол ШЭ ВОШ по предмету ЛИТ'!P4","v":"Муниципальное бюджетное общеобразовательное учреждение \"Многопрофильный лицей №37\" Нижнекамского муниципального района Республики Татарстан"}]
[{"$f":"'[1]Протокол ШЭ ВОШ по предмету ЛИТ'!A5","v":4},{"$f":"'[1]Протокол ШЭ ВОШ по предмету ЛИТ'!C5","v":"Калмыкова"},{"$f":"'[1]Протокол ШЭ ВОШ по предмету ЛИТ'!D5","v":"Мирослава"},{"$f":"'[1]Протокол ШЭ ВОШ по предмету ЛИТ'!E5","v":"Юрьевна"},{"$f":"'[1]Протокол ШЭ ВОШ по предмету ЛИТ'!G5","v":"ж"},{"$f":"'[1]Протокол ШЭ ВОШ по предмету ЛИТ'!H5","v":"нет"},{"$f":"'[1]Протокол ШЭ ВОШ по предмету ЛИТ'!I5","v":4},{"$f":"'[1]Протокол ШЭ ВОШ по предмету ЛИТ'!J5","v":4},{"$f":"'[1]Протокол ШЭ ВОШ по предмету ЛИТ'!K5","v":3},{"$f":"'[1]Протокол ШЭ ВОШ по предмету ЛИТ'!L5","v":8},{"$f":"'[1]Протокол ШЭ ВОШ по предмету ЛИТ'!M5","v":"призер"},null,{"$f":"'[1]Протокол ШЭ ВОШ по предмету ЛИТ'!O5","v":"Корноухова Светлана Васильевна"},{"$f":"'[1]Протокол ШЭ ВОШ по предмету ЛИТ'!P5","v":"Муниципальное бюджетное общеобразовательное учреждение \"Многопрофильный лицей №37\" Нижнекамского муниципального района Республики Татарстан"}]
[{"$f":"'[1]Протокол ШЭ ВОШ по предмету ЛИТ'!A6","v":5},{"$f":"'[1]Протокол ШЭ ВОШ по предмету ЛИТ'!C6","v":"Гарипова"},{"$f":"'[1]Протокол ШЭ ВОШ по предмету ЛИТ'!D6","v":"Зухра"},{"$f":"'[1]Протокол ШЭ ВОШ по предмету ЛИТ'!E6","v":"Зуфаровна"},{"$f":"'[1]Протокол ШЭ ВОШ по предмету ЛИТ'!G6","v":"ж"},{"$f":"'[1]Протокол ШЭ ВОШ по предмету ЛИТ'!H6","v":"нет"},{"$f":"'[1]Протокол ШЭ ВОШ по предмету ЛИТ'!I6","v":4},{"$f":"'[1]Протокол ШЭ ВОШ по предмету ЛИТ'!J6","v":4},{"$f":"'[1]Протокол ШЭ ВОШ по предмету ЛИТ'!K6","v":3},{"$f":"'[1]Протокол ШЭ ВОШ по предмету ЛИТ'!L6","v":8},{"$f":"'[1]Протокол ШЭ ВОШ по предмету ЛИТ'!M6","v":"призер"},null,{"$f":"'[1]Протокол ШЭ ВОШ по предмету ЛИТ'!O6","v":"Хаметова Рамиля Раилевна"},{"$f":"'[1]Протокол ШЭ ВОШ по предмету ЛИТ'!P6","v":"Муниципальное бюджетное общеобразовательное учреждение \"Многопрофильный лицей №37\" Нижнекамского муниципального района Республики Татарстан"}]
[{"$f":"'[1]Протокол ШЭ ВОШ по предмету ЛИТ'!A7","v":6},{"$f":"'[1]Протокол ШЭ ВОШ по предмету ЛИТ'!C7","v":"Абдуллина"},{"$f":"'[1]Протокол ШЭ ВОШ по предмету ЛИТ'!D7","v":"Эмилия"},{"$f":"'[1]Протокол ШЭ ВОШ по предмету ЛИТ'!E7","v":"Эльмаровна"},{"$f":"'[1]Протокол ШЭ ВОШ по предмету ЛИТ'!G7","v":"ж"},{"$f":"'[1]Протокол ШЭ ВОШ по предмету ЛИТ'!H7","v":"нет"},{"$f":"'[1]Протокол ШЭ ВОШ по предмету ЛИТ'!I7","v":4},{"$f":"'[1]Протокол ШЭ ВОШ по предмету ЛИТ'!J7","v":4},{"$f":"'[1]Протокол ШЭ ВОШ по предмету ЛИТ'!K7","v":3},{"$f":"'[1]Протокол ШЭ ВОШ по предмету ЛИТ'!L7","v":8},{"$f":"'[1]Протокол ШЭ ВОШ по предмету ЛИТ'!M7","v":"призер"},null,{"$f":"'[1]Протокол ШЭ ВОШ по предмету ЛИТ'!O7","v":"Корноухова Светлана Васильевна"},{"$f":"'[1]Протокол ШЭ ВОШ по предмету ЛИТ'!P7","v":"Муниципальное бюджетное общеобразовательное учреждение \"Многопрофильный лицей №37\" Нижнекамского муниципального района Республики Татарстан"}]
[{"$f":"'[1]Протокол ШЭ ВОШ по предмету ЛИТ'!A8","v":7},{"$f":"'[1]Протокол ШЭ ВОШ по предмету ЛИТ'!C8","v":"Ибатуллина"},{"$f":"'[1]Протокол ШЭ ВОШ по предмету ЛИТ'!D8","v":"Аделина"},{"$f":"'[1]Протокол ШЭ ВОШ по предмету ЛИТ'!E8","v":"Ильнаровна"},{"$f":"'[1]Протокол ШЭ ВОШ по предмету ЛИТ'!G8","v":"ж"},{"$f":"'[1]Протокол ШЭ ВОШ по предмету ЛИТ'!H8","v":"нет"},{"$f":"'[1]Протокол ШЭ ВОШ по предмету ЛИТ'!I8","v":4},{"$f":"'[1]Протокол ШЭ ВОШ по предмету ЛИТ'!J8","v":4},{"$f":"'[1]Протокол ШЭ ВОШ по предмету ЛИТ'!K8","v":2},{"$f":"'[1]Протокол ШЭ ВОШ по предмету ЛИТ'!L8","v":8},{"$f":"'[1]Протокол ШЭ ВОШ по предмету ЛИТ'!M8","v":"участник"},null,{"$f":"'[1]Протокол ШЭ ВОШ по предмету ЛИТ'!O8","v":"Хаметова Рамиля Раилевна"},{"$f":"'[1]Протокол ШЭ ВОШ по предмету ЛИТ'!P8","v":"Муниципальное бюджетное общеобразовательное учреждение \"Многопрофильный лицей №37\" Нижнекамского муниципального района Республики Татарстан"}]
[{"$f":"'[1]Протокол ШЭ ВОШ по предмету ЛИТ'!A9","v":8},{"$f":"'[1]Протокол ШЭ ВОШ по предмету ЛИТ'!C9","v":"Ильин"},{"$f":"'[1]Протокол ШЭ ВОШ по предмету ЛИТ'!D9","v":"Арсений"},{"$f":"'[1]Протокол ШЭ ВОШ по предмету ЛИТ'!E9","v":"Дмитриевич"},{"$f":"'[1]Протокол ШЭ ВОШ по предмету ЛИТ'!G9","v":"м"},{"$f":"'[1]Протокол ШЭ ВОШ по предмету ЛИТ'!H9","v":"нет"},{"$f":"'[1]Протокол ШЭ ВОШ по предмету ЛИТ'!I9","v":4},{"$f":"'[1]Протокол ШЭ ВОШ по предмету ЛИТ'!J9","v":4},{"$f":"'[1]Протокол ШЭ ВОШ по предмету ЛИТ'!K9","v":2},{"$f":"'[1]Протокол ШЭ ВОШ по предмету ЛИТ'!L9","v":8},{"$f":"'[1]Протокол ШЭ ВОШ по предмету ЛИТ'!M9","v":"участник"},null,{"$f":"'[1]Протокол ШЭ ВОШ по предмету ЛИТ'!O9","v":"Хаметова Рамиля Раилевна"},{"$f":"'[1]Протокол ШЭ ВОШ по предмету ЛИТ'!P9","v":"Муниципальное бюджетное общеобразовательное учреждение \"Многопрофильный лицей №37\" Нижнекамского муниципального района Республики Татарстан"}]
[{"$f":"'[1]Протокол ШЭ ВОШ по предмету ЛИТ'!A10","v":9},{"$f":"'[1]Протокол ШЭ ВОШ по предмету ЛИТ'!C10","v":"Мубаракшин"},{"$f":"'[1]Протокол ШЭ ВОШ по предмету ЛИТ'!D10","v":"Динар"},{"$f":"'[1]Протокол ШЭ ВОШ по предмету ЛИТ'!E10","v":"Рустемович"},{"$f":"'[1]Протокол ШЭ ВОШ по предмету ЛИТ'!G10","v":"м"},{"$f":"'[1]Протокол ШЭ ВОШ по предмету ЛИТ'!H10","v":"нет"},{"$f":"'[1]Протокол ШЭ ВОШ по предмету ЛИТ'!I10","v":4},{"$f":"'[1]Протокол ШЭ ВОШ по предмету ЛИТ'!J10","v":4},{"$f":"'[1]Протокол ШЭ ВОШ по предмету ЛИТ'!K10","v":2},{"$f":"'[1]Протокол ШЭ ВОШ по предмету ЛИТ'!L10","v":8},{"$f":"'[1]Протокол ШЭ ВОШ по предмету ЛИТ'!M10","v":"участник"},null,{"$f":"'[1]Протокол ШЭ ВОШ по предмету ЛИТ'!O10","v":"Хаметова Рамиля Раилевна"},{"$f":"'[1]Протокол ШЭ ВОШ по предмету ЛИТ'!P10","v":"Муниципальное бюджетное общеобразовательное учреждение \"Многопрофильный лицей №37\" Нижнекамского муниципального района Республики Татарстан"}]
[{"$f":"'[1]Протокол ШЭ ВОШ по предмету ЛИТ'!A11","v":10},{"$f":"'[1]Протокол ШЭ ВОШ по предмету ЛИТ'!C11","v":"Гарипов"},{"$f":"'[1]Протокол ШЭ ВОШ по предмету ЛИТ'!D11","v":"Раяз"},{"$f":"'[1]Протокол ШЭ ВОШ по предмету ЛИТ'!E11","v":"Рамисович"},{"$f":"'[1]Протокол ШЭ ВОШ по предмету ЛИТ'!G11","v":"м"},{"$f":"'[1]Протокол ШЭ ВОШ по предмету ЛИТ'!H11","v":"нет"},{"$f":"'[1]Протокол ШЭ ВОШ по предмету ЛИТ'!I11","v":4},{"$f":"'[1]Протокол ШЭ ВОШ по предмету ЛИТ'!J11","v":4},{"$f":"'[1]Протокол ШЭ ВОШ по предмету ЛИТ'!K11","v":2},{"$f":"'[1]Протокол ШЭ ВОШ по предмету ЛИТ'!L11","v":8},{"$f":"'[1]Протокол ШЭ ВОШ по предмету ЛИТ'!M11","v":"участник"},null,{"$f":"'[1]Протокол ШЭ ВОШ по предмету ЛИТ'!O11","v":"Конева Валентина Викторовна"},{"$f":"'[1]Протокол ШЭ ВОШ по предмету ЛИТ'!P11","v":"Муниципальное бюджетное общеобразовательное учреждение \"Многопрофильный лицей №37\" Нижнекамского муниципального района Республики Татарстан"}]
[{"$f":"'[1]Протокол ШЭ ВОШ по предмету ЛИТ'!A12","v":11},{"$f":"'[1]Протокол ШЭ ВОШ по предмету ЛИТ'!C12","v":"Ярмиев"},{"$f":"'[1]Протокол ШЭ ВОШ по предмету ЛИТ'!D12","v":"Рамазан"},{"$f":"'[1]Протокол ШЭ ВОШ по предмету ЛИТ'!E12","v":"Атласович"},{"$f":"'[1]Протокол ШЭ ВОШ по предмету ЛИТ'!G12","v":"м"},{"$f":"'[1]Протокол ШЭ ВОШ по предмету ЛИТ'!H12","v":"нет"},{"$f":"'[1]Протокол ШЭ ВОШ по предмету ЛИТ'!I12","v":4},{"$f":"'[1]Протокол ШЭ ВОШ по предмету ЛИТ'!J12","v":4},{"$f":"'[1]Протокол ШЭ ВОШ по предмету ЛИТ'!K12","v":2},{"$f":"'[1]Протокол ШЭ ВОШ по предмету ЛИТ'!L12","v":8},{"$f":"'[1]Протокол ШЭ ВОШ по предмету ЛИТ'!M12","v":"участник"},null,{"$f":"'[1]Протокол ШЭ ВОШ по предмету ЛИТ'!O12","v":"Гильманова Ляйля Мукатдасовна"},{"$f":"'[1]Протокол ШЭ ВОШ по предмету ЛИТ'!P12","v":"Муниципальное бюджетное общеобразовательное учреждение \"Многопрофильный лицей №37\" Нижнекамского муниципального района Республики Татарстан"}]
[{"$f":"'[1]Протокол ШЭ ВОШ по предмету ЛИТ'!A13","v":12},{"$f":"'[1]Протокол ШЭ ВОШ по предмету ЛИТ'!C13","v":"Вахитов"},{"$f":"'[1]Протокол ШЭ ВОШ по предмету ЛИТ'!D13","v":"Радис"},{"$f":"'[1]Протокол ШЭ ВОШ по предмету ЛИТ'!E13","v":"Ренатович"},{"$f":"'[1]Протокол ШЭ ВОШ по предмету ЛИТ'!G13","v":"м"},{"$f":"'[1]Протокол ШЭ ВОШ по предмету ЛИТ'!H13","v":"нет"},{"$f":"'[1]Протокол ШЭ ВОШ по предмету ЛИТ'!I13","v":4},{"$f":"'[1]Протокол ШЭ ВОШ по предмету ЛИТ'!J13","v":4},{"$f":"'[1]Протокол ШЭ ВОШ по предмету ЛИТ'!K13","v":2},{"$f":"'[1]Протокол ШЭ ВОШ по предмету ЛИТ'!L13","v":8},{"$f":"'[1]Протокол ШЭ ВОШ по предмету ЛИТ'!M13","v":"участник"},null,{"$f":"'[1]Протокол ШЭ ВОШ по предмету ЛИТ'!O13","v":"Конева Валентина Викторовна"},{"$f":"'[1]Протокол ШЭ ВОШ по предмету ЛИТ'!P13","v":"Муниципальное бюджетное общеобразовательное учреждение \"Многопрофильный лицей №37\" Нижнекамского муниципального района Республики Татарстан"}]
[{"$f":"'[1]Протокол ШЭ ВОШ по предмету ЛИТ'!A14","v":13},{"$f":"'[1]Протокол ШЭ ВОШ по предмету ЛИТ'!C14","v":"Чернобровкин"},{"$f":"'[1]Протокол ШЭ ВОШ по предмету ЛИТ'!D14","v":"Артём"},{"$f":"'[1]Протокол ШЭ ВОШ по предмету ЛИТ'!E14","v":"Николаевич"},{"$f":"'[1]Протокол ШЭ ВОШ по предмету ЛИТ'!G14","v":"м"},{"$f":"'[1]Протокол ШЭ ВОШ по предмету ЛИТ'!H14","v":"нет"},{"$f":"'[1]Протокол ШЭ ВОШ по предмету ЛИТ'!I14","v":4},{"$f":"'[1]Протокол ШЭ ВОШ по предмету ЛИТ'!J14","v":4},{"$f":"'[1]Протокол ШЭ ВОШ по предмету ЛИТ'!K14","v":2},{"$f":"'[1]Протокол ШЭ ВОШ по предмету ЛИТ'!L14","v":8},{"$f":"'[1]Протокол ШЭ ВОШ по предмету ЛИТ'!M14","v":"участник"},null,{"$f":"'[1]Протокол ШЭ ВОШ по предмету ЛИТ'!O14","v":"Конева Валентина Викторовна"},{"$f":"'[1]Протокол ШЭ ВОШ по предмету ЛИТ'!P14","v":"Муниципальное бюджетное общеобразовательное учреждение \"Многопрофильный лицей №37\" Нижнекамского муниципального района Республики Татарстан"}]
[{"$f":"'[1]Протокол ШЭ ВОШ по предмету ЛИТ'!A15","v":14},{"$f":"'[1]Протокол ШЭ ВОШ по предмету ЛИТ'!C15","v":"Гайнуллин"},{"$f":"'[1]Протокол ШЭ ВОШ по предмету ЛИТ'!D15","v":"Рифат"},{"$f":"'[1]Протокол ШЭ ВОШ по предмету ЛИТ'!E15","v":"Русланович"},{"$f":"'[1]Протокол ШЭ ВОШ по предмету ЛИТ'!G15","v":"м"},{"$f":"'[1]Протокол ШЭ ВОШ по предмету ЛИТ'!H15","v":"нет"},{"$f":"'[1]Протокол ШЭ ВОШ по предмету ЛИТ'!I15","v":4},{"$f":"'[1]Протокол ШЭ ВОШ по предмету ЛИТ'!J15","v":4},{"$f":"'[1]Протокол ШЭ ВОШ по предмету ЛИТ'!K15","v":1},{"$f":"'[1]Протокол ШЭ ВОШ по предмету ЛИТ'!L15","v":8},{"$f":"'[1]Протокол ШЭ ВОШ по предмету ЛИТ'!M15","v":"участник"},null,{"$f":"'[1]Протокол ШЭ ВОШ по предмету ЛИТ'!O15","v":"Конева Валентина Викторовна"},{"$f":"'[1]Протокол ШЭ ВОШ по предмету ЛИТ'!P15","v":"Муниципальное бюджетное общеобразовательное учреждение \"Многопрофильный лицей №37\" Нижнекамского муниципального района Республики Татарстан"}]
[{"$f":"'[1]Протокол ШЭ ВОШ по предмету ЛИТ'!A16","v":15},{"$f":"'[1]Протокол ШЭ ВОШ по предмету ЛИТ'!C16","v":"Семёнов"},{"$f":"'[1]Протокол ШЭ ВОШ по предмету ЛИТ'!D16","v":"Артём"},{"$f":"'[1]Протокол ШЭ ВОШ по предмету ЛИТ'!E16","v":"Константинович"},{"$f":"'[1]Протокол ШЭ ВОШ по предмету ЛИТ'!G16","v":"м"},{"$f":"'[1]Протокол ШЭ ВОШ по предмету ЛИТ'!H16","v":"нет"},{"$f":"'[1]Протокол ШЭ ВОШ по предмету ЛИТ'!I16","v":4},{"$f":"'[1]Протокол ШЭ ВОШ по предмету ЛИТ'!J16","v":4},{"$f":"'[1]Протокол ШЭ ВОШ по предмету ЛИТ'!K16","v":1},{"$f":"'[1]Протокол ШЭ ВОШ по предмету ЛИТ'!L16","v":8},{"$f":"'[1]Протокол ШЭ ВОШ по предмету ЛИТ'!M16","v":"участник"},null,{"$f":"'[1]Протокол ШЭ ВОШ по предмету ЛИТ'!O16","v":"Конева Валентина Викторовна"},{"$f":"'[1]Протокол ШЭ ВОШ по предмету ЛИТ'!P16","v":"Муниципальное бюджетное общеобразовательное учреждение \"Многопрофильный лицей №37\" Нижнекамского муниципального района Республики Татарстан"}]
[{"$f":"'[1]Протокол ШЭ ВОШ по предмету ЛИТ'!A17","v":16},{"$f":"'[1]Протокол ШЭ ВОШ по предмету ЛИТ'!C17","v":"Бабаев"},{"$f":"'[1]Протокол ШЭ ВОШ по предмету ЛИТ'!D17","v":"Иван"},{"$f":"'[1]Протокол ШЭ ВОШ по предмету ЛИТ'!E17","v":"Андреевич"},{"$f":"'[1]Протокол ШЭ ВОШ по предмету ЛИТ'!G17","v":"м"},"нет",{"$f":"'[1]Протокол ШЭ ВОШ по предмету ЛИТ'!I17","v":4},{"$f":"'[1]Протокол ШЭ ВОШ по предмету ЛИТ'!J17","v":4},{"$f":"'[1]Протокол ШЭ ВОШ по предмету ЛИТ'!K17","v":1},{"$f":"'[1]Протокол ШЭ ВОШ по предмету ЛИТ'!L17","v":8},{"$f":"'[1]Протокол ШЭ ВОШ по предмету ЛИТ'!M17","v":"участник"},null,{"$f":"'[1]Протокол ШЭ ВОШ по предмету ЛИТ'!O17","v":"Хамадеева Гузель Камилевна"},{"$f":"'[1]Протокол ШЭ ВОШ по предмету ЛИТ'!P17","v":"Муниципальное бюджетное общеобразовательное учреждение \"Многопрофильный лицей №37\" Нижнекамского муниципального района Республики Татарстан"}]
[{"$f":"'[1]Протокол ШЭ ВОШ по предмету ЛИТ'!A18","v":17},{"$f":"'[1]Протокол ШЭ ВОШ по предмету ЛИТ'!C18","v":"Чугунов"},{"$f":"'[1]Протокол ШЭ ВОШ по предмету ЛИТ'!D18","v":"Михаил"},{"$f":"'[1]Протокол ШЭ ВОШ по предмету ЛИТ'!E18","v":"Валерьевич"},{"$f":"'[1]Протокол ШЭ ВОШ по предмету ЛИТ'!G18","v":"м"},{"$f":"'[1]Протокол ШЭ ВОШ по предмету ЛИТ'!H18","v":"нет"},{"$f":"'[1]Протокол ШЭ ВОШ по предмету ЛИТ'!I18","v":4},{"$f":"'[1]Протокол ШЭ ВОШ по предмету ЛИТ'!J18","v":4},{"$f":"'[1]Протокол ШЭ ВОШ по предмету ЛИТ'!K18","v":1},{"$f":"'[1]Протокол ШЭ ВОШ по предмету ЛИТ'!L18","v":8},{"$f":"'[1]Протокол ШЭ ВОШ по предмету ЛИТ'!M18","v":"участник"},null,{"$f":"'[1]Протокол ШЭ ВОШ по предмету ЛИТ'!O18","v":"Хамадеева Гузель Камилевна"},{"$f":"'[1]Протокол ШЭ ВОШ по предмету ЛИТ'!P18","v":"Муниципальное бюджетное общеобразовательное учреждение \"Многопрофильный лицей №37\" Нижнекамского муниципального района Республики Татарстан"}]
[{"$f":"'[1]Протокол ШЭ ВОШ по предмету ЛИТ'!A19","v":18},{"$f":"'[1]Протокол ШЭ ВОШ по предмету ЛИТ'!C19","v":"Яфарова"},{"$f":"'[1]Протокол ШЭ ВОШ по предмету ЛИТ'!D19","v":"Камилла"},{"$f":"'[1]Протокол ШЭ ВОШ по предмету ЛИТ'!E19","v":"Марсовна"},{"$f":"'[1]Протокол ШЭ ВОШ по предмету ЛИТ'!G19","v":"ж"},{"$f":"'[1]Протокол ШЭ ВОШ по предмету ЛИТ'!H19","v":"нет"},{"$f":"'[1]Протокол ШЭ ВОШ по предмету ЛИТ'!I19","v":4},{"$f":"'[1]Протокол ШЭ ВОШ по предмету ЛИТ'!J19","v":4},{"$f":"'[1]Протокол ШЭ ВОШ по предмету ЛИТ'!K19","v":1},{"$f":"'[1]Протокол ШЭ ВОШ по предмету ЛИТ'!L19","v":8},{"$f":"'[1]Протокол ШЭ ВОШ по предмету ЛИТ'!M19","v":"участник"},null,{"$f":"'[1]Протокол ШЭ ВОШ по предмету ЛИТ'!O19","v":"Хамадеева Гузель Камилевна"},{"$f":"'[1]Протокол ШЭ ВОШ по предмету ЛИТ'!P19","v":"Муниципальное бюджетное общеобразовательное учреждение \"Многопрофильный лицей №37\" Нижнекамского муниципального района Республики Татарстан"}]
[{"$f":"'[1]Протокол ШЭ ВОШ по предмету ЛИТ'!A20","v":19},{"$f":"'[1]Протокол ШЭ ВОШ по предмету ЛИТ'!C20","v":"Гайфутдинов"},{"$f":"'[1]Протокол ШЭ ВОШ по предмету ЛИТ'!D20","v":"Искандер"},{"$f":"'[1]Протокол ШЭ ВОШ по предмету ЛИТ'!E20","v":"Айнурович"},{"$f":"'[1]Протокол ШЭ ВОШ по предмету ЛИТ'!G20","v":"м"},{"$f":"'[1]Протокол ШЭ ВОШ по предмету ЛИТ'!H20","v":"нет"},{"$f":"'[1]Протокол ШЭ ВОШ по предмету ЛИТ'!I20","v":4},{"$f":"'[1]Протокол ШЭ ВОШ по предмету ЛИТ'!J20","v":4},{"$f":"'[1]Протокол ШЭ ВОШ по предмету ЛИТ'!K20","v":1},{"$f":"'[1]Протокол ШЭ ВОШ по предмету ЛИТ'!L20","v":8},{"$f":"'[1]Протокол ШЭ ВОШ по предмету ЛИТ'!M20","v":"участник"},null,{"$f":"'[1]Протокол ШЭ ВОШ по предмету ЛИТ'!O20","v":"Гильманова Ляйля Мукатдасовна"},{"$f":"'[1]Протокол ШЭ ВОШ по предмету ЛИТ'!P20","v":"Муниципальное бюджетное общеобразовательное учреждение \"Многопрофильный лицей №37\" Нижнекамского муниципального района Республики Татарстан"}]
[{"$f":"'[1]Протокол ШЭ ВОШ по предмету ЛИТ'!A21","v":20},{"$f":"'[1]Протокол ШЭ ВОШ по предмету ЛИТ'!C21","v":"Матросов"},{"$f":"'[1]Протокол ШЭ ВОШ по предмету ЛИТ'!D21","v":"Дмитрий"},{"$f":"'[1]Протокол ШЭ ВОШ по предмету ЛИТ'!E21","v":"Сергеевич"},{"$f":"'[1]Протокол ШЭ ВОШ по предмету ЛИТ'!G21","v":"м"},{"$f":"'[1]Протокол ШЭ ВОШ по предмету ЛИТ'!H21","v":"нет"},{"$f":"'[1]Протокол ШЭ ВОШ по предмету ЛИТ'!I21","v":4},{"$f":"'[1]Протокол ШЭ ВОШ по предмету ЛИТ'!J21","v":4},{"$f":"'[1]Протокол ШЭ ВОШ по предмету ЛИТ'!K21","v":1},{"$f":"'[1]Протокол ШЭ ВОШ по предмету ЛИТ'!L21","v":8},{"$f":"'[1]Протокол ШЭ ВОШ по предмету ЛИТ'!M21","v":"участник"},null,{"$f":"'[1]Протокол ШЭ ВОШ по предмету ЛИТ'!O21","v":"Корноухова Светлана Васильевна"},{"$f":"'[1]Протокол ШЭ ВОШ по предмету ЛИТ'!P21","v":"Муниципальное бюджетное общеобразовательное учреждение \"Многопрофильный лицей №37\" Нижнекамского муниципального района Республики Татарстан"}]
[{"$f":"'[1]Протокол ШЭ ВОШ по предмету ЛИТ'!A22","v":21},{"$f":"'[1]Протокол ШЭ ВОШ по предмету ЛИТ'!C22","v":"Ишмулина"},{"$f":"'[1]Протокол ШЭ ВОШ по предмету ЛИТ'!D22","v":"Елизавета"},{"$f":"'[1]Протокол ШЭ ВОШ по предмету ЛИТ'!E22","v":"Дмитриевна"},{"$f":"'[1]Протокол ШЭ ВОШ по предмету ЛИТ'!G22","v":"ж"},{"$f":"'[1]Протокол ШЭ ВОШ по предмету ЛИТ'!H22","v":"нет"},{"$f":"'[1]Протокол ШЭ ВОШ по предмету ЛИТ'!I22","v":4},{"$f":"'[1]Протокол ШЭ ВОШ по предмету ЛИТ'!J22","v":4},{"$f":"'[1]Протокол ШЭ ВОШ по предмету ЛИТ'!K22","v":1},{"$f":"'[1]Протокол ШЭ ВОШ по предмету ЛИТ'!L22","v":8},{"$f":"'[1]Протокол ШЭ ВОШ по предмету ЛИТ'!M22","v":"участник"},null,{"$f":"'[1]Протокол ШЭ ВОШ по предмету ЛИТ'!O22","v":"Корноухова Светлана Васильевна"},{"$f":"'[1]Протокол ШЭ ВОШ по предмету ЛИТ'!P22","v":"Муниципальное бюджетное общеобразовательное учреждение \"Многопрофильный лицей №37\" Нижнекамского муниципального района Республики Татарстан"}]
[{"$f":"'[1]Протокол ШЭ ВОШ по предмету ЛИТ'!A23","v":22},{"$f":"'[1]Протокол ШЭ ВОШ по предмету ЛИТ'!C23","v":"Хамидуллин"},{"$f":"'[1]Протокол ШЭ ВОШ по предмету ЛИТ'!D23","v":"Карим"},{"$f":"'[1]Протокол ШЭ ВОШ по предмету ЛИТ'!E23","v":"Айратович"},"м",{"$f":"'[1]Протокол ШЭ ВОШ по предмету ЛИТ'!H23","v":"нет"},{"$f":"'[1]Протокол ШЭ ВОШ по предмету ЛИТ'!I23","v":5},{"$f":"'[1]Протокол ШЭ ВОШ по предмету ЛИТ'!J23","v":5},{"$f":"'[1]Протокол ШЭ ВОШ по предмету ЛИТ'!K23","v":6},{"$f":"'[1]Протокол ШЭ ВОШ по предмету ЛИТ'!L23","v":8},"победитель",null,{"$f":"'[1]Протокол ШЭ ВОШ по предмету ЛИТ'!O23","v":"Нуждина Олеся Евгеньевна"},{"$f":"'[1]Протокол ШЭ ВОШ по предмету ЛИТ'!P23","v":"Муниципальное бюджетное общеобразовательное учреждение \"Многопрофильный лицей №37\" Нижнекамского муниципального района Республики Татарстан"}]
[{"$f":"'[1]Протокол ШЭ ВОШ по предмету ЛИТ'!A24","v":23},{"$f":"'[1]Протокол ШЭ ВОШ по предмету ЛИТ'!C24","v":"Ваганов"},{"$f":"'[1]Протокол ШЭ ВОШ по предмету ЛИТ'!D24","v":"Ярослав"},{"$f":"'[1]Протокол ШЭ ВОШ по предмету ЛИТ'!E24","v":"Евгеньевич"},"м",{"$f":"'[1]Протокол ШЭ ВОШ по предмету ЛИТ'!H24","v":"нет"},{"$f":"'[1]Протокол ШЭ ВОШ по предмету ЛИТ'!I24","v":5},{"$f":"'[1]Протокол ШЭ ВОШ по предмету ЛИТ'!J24","v":5},{"$f":"'[1]Протокол ШЭ ВОШ по предмету ЛИТ'!K24","v":2},{"$f":"'[1]Протокол ШЭ ВОШ по предмету ЛИТ'!L24","v":8},{"$f":"'[1]Протокол ШЭ ВОШ по предмету ЛИТ'!M24","v":"участник"},null,{"$f":"'[1]Протокол ШЭ ВОШ по предмету ЛИТ'!O24","v":"Нуждина Олеся Евгеньевна"},{"$f":"'[1]Протокол ШЭ ВОШ по предмету ЛИТ'!P24","v":"Муниципальное бюджетное общеобразовательное учреждение \"Многопрофильный лицей №37\" Нижнекамского муниципального района Республики Татарстан"}]
[{"$f":"'[1]Протокол ШЭ ВОШ по предмету ЛИТ'!A25","v":24},{"$f":"'[1]Протокол ШЭ ВОШ по предмету ЛИТ'!C25","v":"Зайнуллин"},{"$f":"'[1]Протокол ШЭ ВОШ по предмету ЛИТ'!D25","v":"Никита"},{"$f":"'[1]Протокол ШЭ ВОШ по предмету ЛИТ'!E25","v":"Артурович"},"м",{"$f":"'[1]Протокол ШЭ ВОШ по предмету ЛИТ'!H25","v":"нет"},{"$f":"'[1]Протокол ШЭ ВОШ по предмету ЛИТ'!I25","v":5},{"$f":"'[1]Протокол ШЭ ВОШ по предмету ЛИТ'!J25","v":5},{"$f":"'[1]Протокол ШЭ ВОШ по предмету ЛИТ'!K25","v":2},{"$f":"'[1]Протокол ШЭ ВОШ по предмету ЛИТ'!L25","v":8},{"$f":"'[1]Протокол ШЭ ВОШ по предмету ЛИТ'!M25","v":"участник"},null,{"$f":"'[1]Протокол ШЭ ВОШ по предмету ЛИТ'!O25","v":"Галимова Алия Альбертовна"},{"$f":"'[1]Протокол ШЭ ВОШ по предмету ЛИТ'!P25","v":"Муниципальное бюджетное общеобразовательное учреждение \"Многопрофильный лицей №37\" Нижнекамского муниципального района Республики Татарстан"}]
[{"$f":"'[1]Протокол ШЭ ВОШ по предмету ЛИТ'!A26","v":25},{"$f":"'[1]Протокол ШЭ ВОШ по предмету ЛИТ'!C26","v":"Ибашаев"},{"$f":"'[1]Протокол ШЭ ВОШ по предмету ЛИТ'!D26","v":"Олег"},{"$f":"'[1]Протокол ШЭ ВОШ по предмету ЛИТ'!E26","v":"Евгеньевич"},"м",{"$f":"'[1]Протокол ШЭ ВОШ по предмету ЛИТ'!H26","v":"нет"},{"$f":"'[1]Протокол ШЭ ВОШ по предмету ЛИТ'!I26","v":5},{"$f":"'[1]Протокол ШЭ ВОШ по предмету ЛИТ'!J26","v":5},{"$f":"'[1]Протокол ШЭ ВОШ по предмету ЛИТ'!K26","v":1},{"$f":"'[1]Протокол ШЭ ВОШ по предмету ЛИТ'!L26","v":8},{"$f":"'[1]Протокол ШЭ ВОШ по предмету ЛИТ'!M26","v":"участник"},null,{"$f":"'[1]Протокол ШЭ ВОШ по предмету ЛИТ'!O26","v":"Нуждина Олеся Евгеньевна"},{"$f":"'[1]Протокол ШЭ ВОШ по предмету ЛИТ'!P26","v":"Муниципальное бюджетное общеобразовательное учреждение \"Многопрофильный лицей №37\" Нижнекамского муниципального района Республики Татарстан"}]
[{"$f":"'[1]Протокол ШЭ ВОШ по предмету ЛИТ'!A27","v":26},{"$f":"'[1]Протокол ШЭ ВОШ по предмету ЛИТ'!C27","v":"Барабаш"},{"$f":"'[1]Протокол ШЭ ВОШ по предмету ЛИТ'!D27","v":"Богдан"},{"$f":"'[1]Протокол ШЭ ВОШ по предмету ЛИТ'!E27","v":"Алексеевич"},"м",{"$f":"'[1]Протокол ШЭ ВОШ по предмету ЛИТ'!H27","v":"нет"},{"$f":"'[1]Протокол ШЭ ВОШ по предмету ЛИТ'!I27","v":5},{"$f":"'[1]Протокол ШЭ ВОШ по предмету ЛИТ'!J27","v":5},{"$f":"'[1]Протокол ШЭ ВОШ по предмету ЛИТ'!K27","v":1},{"$f":"'[1]Протокол ШЭ ВОШ по предмету ЛИТ'!L27","v":8},{"$f":"'[1]Протокол ШЭ ВОШ по предмету ЛИТ'!M27","v":"участник"},null,{"$f":"'[1]Протокол ШЭ ВОШ по предмету ЛИТ'!O27","v":"Стрелкова Арина Алексеевна"},{"$f":"'[1]Протокол ШЭ ВОШ по предмету ЛИТ'!P27","v":"Муниципальное бюджетное общеобразовательное учреждение \"Многопрофильный лицей №37\" Нижнекамского муниципального района Республики Татарстан"}]
[{"$f":"'[1]Протокол ШЭ ВОШ по предмету ЛИТ'!A28","v":27},{"$f":"'[1]Протокол ШЭ ВОШ по предмету ЛИТ'!C28","v":"Ахметшин"},{"$f":"'[1]Протокол ШЭ ВОШ по предмету ЛИТ'!D28","v":"Амирхан"},{"$f":"'[1]Протокол ШЭ ВОШ по предмету ЛИТ'!E28","v":"Азатович"},"м",{"$f":"'[1]Протокол ШЭ ВОШ по предмету ЛИТ'!H28","v":"нет"},{"$f":"'[1]Протокол ШЭ ВОШ по предмету ЛИТ'!I28","v":5},{"$f":"'[1]Протокол ШЭ ВОШ по предмету ЛИТ'!J28","v":5},{"$f":"'[1]Протокол ШЭ ВОШ по предмету ЛИТ'!K28","v":1},{"$f":"'[1]Протокол ШЭ ВОШ по предмету ЛИТ'!L28","v":8},{"$f":"'[1]Протокол ШЭ ВОШ по предмету ЛИТ'!M28","v":"участник"},null,{"$f":"'[1]Протокол ШЭ ВОШ по предмету ЛИТ'!O28","v":"Нуждина Олеся Евгеньевна"},{"$f":"'[1]Протокол ШЭ ВОШ по предмету ЛИТ'!P28","v":"Муниципальное бюджетное общеобразовательное учреждение \"Многопрофильный лицей №37\" Нижнекамского муниципального района Республики Татарстан"}]
[{"$f":"'[1]Протокол ШЭ ВОШ по предмету ЛИТ'!A29","v":28},{"$f":"'[1]Протокол ШЭ ВОШ по предмету ЛИТ'!C29","v":"Буланов"},{"$f":"'[1]Протокол ШЭ ВОШ по предмету ЛИТ'!D29","v":"Владислав"},{"$f":"'[1]Протокол ШЭ ВОШ по предмету ЛИТ'!E29","v":"Алексеевич"},"м",{"$f":"'[1]Протокол ШЭ ВОШ по предмету ЛИТ'!H29","v":"нет"},{"$f":"'[1]Протокол ШЭ ВОШ по предмету ЛИТ'!I29","v":5},{"$f":"'[1]Протокол ШЭ ВОШ по предмету ЛИТ'!J29","v":5},{"$f":"'[1]Протокол ШЭ ВОШ по предмету ЛИТ'!K29","v":1},{"$f":"'[1]Протокол ШЭ ВОШ по предмету ЛИТ'!L29","v":8},{"$f":"'[1]Протокол ШЭ ВОШ по предмету ЛИТ'!M29","v":"участник"},null,{"$f":"'[1]Протокол ШЭ ВОШ по предмету ЛИТ'!O29","v":"Нуждина Олеся Евгеньевна"},{"$f":"'[1]Протокол ШЭ ВОШ по предмету ЛИТ'!P29","v":"Муниципальное бюджетное общеобразовательное учреждение \"Многопрофильный лицей №37\" Нижнекамского муниципального района Республики Татарстан"}]
[{"$f":"'[1]Протокол ШЭ ВОШ по предмету ЛИТ'!A30","v":29},{"$f":"'[1]Протокол ШЭ ВОШ по предмету ЛИТ'!C30","v":"Сосунов"},{"$f":"'[1]Протокол ШЭ ВОШ по предмету ЛИТ'!D30","v":"Дмитрий"},{"$f":"'[1]Протокол ШЭ ВОШ по предмету ЛИТ'!E30","v":"Андреевич"},"м",{"$f":"'[1]Протокол ШЭ ВОШ по предмету ЛИТ'!H30","v":"нет"},{"$f":"'[1]Протокол ШЭ ВОШ по предмету ЛИТ'!I30","v":5},{"$f":"'[1]Протокол ШЭ ВОШ по предмету ЛИТ'!J30","v":5},{"$f":"'[1]Протокол ШЭ ВОШ по предмету ЛИТ'!K30","v":1},{"$f":"'[1]Протокол ШЭ ВОШ по предмету ЛИТ'!L30","v":8},{"$f":"'[1]Протокол ШЭ ВОШ по предмету ЛИТ'!M30","v":"участник"},null,{"$f":"'[1]Протокол ШЭ ВОШ по предмету ЛИТ'!O30","v":"Нуждина Олеся Евгеньевна"},{"$f":"'[1]Протокол ШЭ ВОШ по предмету ЛИТ'!P30","v":"Муниципальное бюджетное общеобразовательное учреждение \"Многопрофильный лицей №37\" Нижнекамского муниципального района Республики Татарстан"}]
[{"$f":"'[1]Протокол ШЭ ВОШ по предмету ЛИТ'!A31","v":30},{"$f":"'[1]Протокол ШЭ ВОШ по предмету ЛИТ'!C31","v":"Хайруллин"},{"$f":"'[1]Протокол ШЭ ВОШ по предмету ЛИТ'!D31","v":"Ралиф"},{"$f":"'[1]Протокол ШЭ ВОШ по предмету ЛИТ'!E31","v":"Ильнурович"},"м",{"$f":"'[1]Протокол ШЭ ВОШ по предмету ЛИТ'!H31","v":"нет"},{"$f":"'[1]Протокол ШЭ ВОШ по предмету ЛИТ'!I31","v":5},{"$f":"'[1]Протокол ШЭ ВОШ по предмету ЛИТ'!J31","v":5},{"$f":"'[1]Протокол ШЭ ВОШ по предмету ЛИТ'!K31","v":1},{"$f":"'[1]Протокол ШЭ ВОШ по предмету ЛИТ'!L31","v":8},{"$f":"'[1]Протокол ШЭ ВОШ по предмету ЛИТ'!M31","v":"участник"},null,{"$f":"'[1]Протокол ШЭ ВОШ по предмету ЛИТ'!O31","v":"Нуждина Олеся Евгеньевна"},{"$f":"'[1]Протокол ШЭ ВОШ по предмету ЛИТ'!P31","v":"Муниципальное бюджетное общеобразовательное учреждение \"Многопрофильный лицей №37\" Нижнекамского муниципального района Республики Татарстан"}]
[{"$f":"'[1]Протокол ШЭ ВОШ по предмету ЛИТ'!A32","v":31},{"$f":"'[1]Протокол ШЭ ВОШ по предмету ЛИТ'!C32","v":"Ульданова"},{"$f":"'[1]Протокол ШЭ ВОШ по предмету ЛИТ'!D32","v":"Наиля"},{"$f":"'[1]Протокол ШЭ ВОШ по предмету ЛИТ'!E32","v":"Ниязовна"},"ж",{"$f":"'[1]Протокол ШЭ ВОШ по предмету ЛИТ'!H32","v":"нет"},{"$f":"'[1]Протокол ШЭ ВОШ по предмету ЛИТ'!I32","v":5},{"$f":"'[1]Протокол ШЭ ВОШ по предмету ЛИТ'!J32","v":5},{"$f":"'[1]Протокол ШЭ ВОШ по предмету ЛИТ'!K32","v":1},{"$f":"'[1]Протокол ШЭ ВОШ по предмету ЛИТ'!L32","v":8},{"$f":"'[1]Протокол ШЭ ВОШ по предмету ЛИТ'!M32","v":"участник"},null,{"$f":"'[1]Протокол ШЭ ВОШ по предмету ЛИТ'!O32","v":"Галимова Алия Альбертовна"},{"$f":"'[1]Протокол ШЭ ВОШ по предмету ЛИТ'!P32","v":"Муниципальное бюджетное общеобразовательное учреждение \"Многопрофильный лицей №37\" Нижнекамского муниципального района Республики Татарстан"}]
[{"$f":"'[1]Протокол ШЭ ВОШ по предмету ЛИТ'!A33","v":32},{"$f":"'[1]Протокол ШЭ ВОШ по предмету ЛИТ'!C33","v":"Мухаметшин"},{"$f":"'[1]Протокол ШЭ ВОШ по предмету ЛИТ'!D33","v":"Дамир"},{"$f":"'[1]Протокол ШЭ ВОШ по предмету ЛИТ'!E33","v":"Ринатович"},"м",{"$f":"'[1]Протокол ШЭ ВОШ по предмету ЛИТ'!H33","v":"нет"},{"$f":"'[1]Протокол ШЭ ВОШ по предмету ЛИТ'!I33","v":5},{"$f":"'[1]Протокол ШЭ ВОШ по предмету ЛИТ'!J33","v":5},{"$f":"'[1]Протокол ШЭ ВОШ по предмету ЛИТ'!K33","v":1},{"$f":"'[1]Протокол ШЭ ВОШ по предмету ЛИТ'!L33","v":8},{"$f":"'[1]Протокол ШЭ ВОШ по предмету ЛИТ'!M33","v":"участник"},null,{"$f":"'[1]Протокол ШЭ ВОШ по предмету ЛИТ'!O33","v":"Галимова Алия Альбертовна"},{"$f":"'[1]Протокол ШЭ ВОШ по предмету ЛИТ'!P33","v":"Муниципальное бюджетное общеобразовательное учреждение \"Многопрофильный лицей №37\" Нижнекамского муниципального района Республики Татарстан"}]
[{"$f":"'[1]Протокол ШЭ ВОШ по предмету ЛИТ'!A34","v":33},{"$f":"'[1]Протокол ШЭ ВОШ по предмету ЛИТ'!C34","v":"Абросимов"},{"$f":"'[1]Протокол ШЭ ВОШ по предмету ЛИТ'!D34","v":"Кирилл"},{"$f":"'[1]Протокол ШЭ ВОШ по предмету ЛИТ'!E34","v":"Романович"},"м",{"$f":"'[1]Протокол ШЭ ВОШ по предмету ЛИТ'!H34","v":"нет"},{"$f":"'[1]Протокол ШЭ ВОШ по предмету ЛИТ'!I34","v":5},{"$f":"'[1]Протокол ШЭ ВОШ по предмету ЛИТ'!J34","v":5},{"$f":"'[1]Протокол ШЭ ВОШ по предмету ЛИТ'!K34","v":0},{"$f":"'[1]Протокол ШЭ ВОШ по предмету ЛИТ'!L34","v":8},{"$f":"'[1]Протокол ШЭ ВОШ по предмету ЛИТ'!M34","v":"участник"},null,{"$f":"'[1]Протокол ШЭ ВОШ по предмету ЛИТ'!O34","v":"Тимонина Ирина Николаевна"},{"$f":"'[1]Протокол ШЭ ВОШ по предмету ЛИТ'!P34","v":"Муниципальное бюджетное общеобразовательное учреждение \"Многопрофильный лицей №37\" Нижнекамского муниципального района Республики Татарстан"}]
[{"$f":"'[1]Протокол ШЭ ВОШ по предмету ЛИТ'!A35","v":34},{"$f":"'[1]Протокол ШЭ ВОШ по предмету ЛИТ'!C35","v":"Давлетгараев"},{"$f":"'[1]Протокол ШЭ ВОШ по предмету ЛИТ'!D35","v":"Юнир"},{"$f":"'[1]Протокол ШЭ ВОШ по предмету ЛИТ'!E35","v":"Ренарович"},"м",{"$f":"'[1]Протокол ШЭ ВОШ по предмету ЛИТ'!H35","v":"нет"},{"$f":"'[1]Протокол ШЭ ВОШ по предмету ЛИТ'!I35","v":5},{"$f":"'[1]Протокол ШЭ ВОШ по предмету ЛИТ'!J35","v":5},{"$f":"'[1]Протокол ШЭ ВОШ по предмету ЛИТ'!K35","v":0},{"$f":"'[1]Протокол ШЭ ВОШ по предмету ЛИТ'!L35","v":8},{"$f":"'[1]Протокол ШЭ ВОШ по предмету ЛИТ'!M35","v":"участник"},null,{"$f":"'[1]Протокол ШЭ ВОШ по предмету ЛИТ'!O35","v":"Галимова Алия Альбертовна"},{"$f":"'[1]Протокол ШЭ ВОШ по предмету ЛИТ'!P35","v":"Муниципальное бюджетное общеобразовательное учреждение \"Многопрофильный лицей №37\" Нижнекамского муниципального района Республики Татарстан"}]
[{"$f":"'[1]Протокол ШЭ ВОШ по предмету ЛИТ'!A36","v":35},{"$f":"'[1]Протокол ШЭ ВОШ по предмету ЛИТ'!C36","v":"Хурматуллина"},{"$f":"'[1]Протокол ШЭ ВОШ по предмету ЛИТ'!D36","v":"Зарина"},{"$f":"'[1]Протокол ШЭ ВОШ по предмету ЛИТ'!E36","v":"Равилевна"},"ж",{"$f":"'[1]Протокол ШЭ ВОШ по предмету ЛИТ'!H36","v":"нет"},{"$f":"'[1]Протокол ШЭ ВОШ по предмету ЛИТ'!I36","v":5},{"$f":"'[1]Протокол ШЭ ВОШ по предмету ЛИТ'!J36","v":5},{"$f":"'[1]Протокол ШЭ ВОШ по предмету ЛИТ'!K36","v":0},{"$f":"'[1]Протокол ШЭ ВОШ по предмету ЛИТ'!L36","v":8},{"$f":"'[1]Протокол ШЭ ВОШ по предмету ЛИТ'!M36","v":"участник"},null,{"$f":"'[1]Протокол ШЭ ВОШ по предмету ЛИТ'!O36","v":"Галимова Алия Альбертовна"},{"$f":"'[1]Протокол ШЭ ВОШ по предмету ЛИТ'!P36","v":"Муниципальное бюджетное общеобразовательное учреждение \"Многопрофильный лицей №37\" Нижнекамского муниципального района Республики Татарстан"}]
[{"$f":"'[1]Протокол ШЭ ВОШ по предмету ЛИТ'!A37","v":36},{"$f":"'[1]Протокол ШЭ ВОШ по предмету ЛИТ'!C37","v":"Андреев"},{"$f":"'[1]Протокол ШЭ ВОШ по предмету ЛИТ'!D37","v":"Булат"},{"$f":"'[1]Протокол ШЭ ВОШ по предмету ЛИТ'!E37","v":"Эдуардович"},"м",{"$f":"'[1]Протокол ШЭ ВОШ по предмету ЛИТ'!H37","v":"нет"},{"$f":"'[1]Протокол ШЭ ВОШ по предмету ЛИТ'!I37","v":5},{"$f":"'[1]Протокол ШЭ ВОШ по предмету ЛИТ'!J37","v":5},{"$f":"'[1]Протокол ШЭ ВОШ по предмету ЛИТ'!K37","v":0},{"$f":"'[1]Протокол ШЭ ВОШ по предмету ЛИТ'!L37","v":8},{"$f":"'[1]Протокол ШЭ ВОШ по предмету ЛИТ'!M37","v":"участник"},null,{"$f":"'[1]Протокол ШЭ ВОШ по предмету ЛИТ'!O37","v":"Тимонина Ирина Николаевна"},{"$f":"'[1]Протокол ШЭ ВОШ по предмету ЛИТ'!P37","v":"Муниципальное бюджетное общеобразовательное учреждение \"Многопрофильный лицей №37\" Нижнекамского муниципального района Республики Татарстан"}]
[{"$f":"'[1]Протокол ШЭ ВОШ по предмету ЛИТ'!A38","v":37},{"$f":"'[1]Протокол ШЭ ВОШ по предмету ЛИТ'!C38","v":"Гатин"},{"$f":"'[1]Протокол ШЭ ВОШ по предмету ЛИТ'!D38","v":"Динар"},{"$f":"'[1]Протокол ШЭ ВОШ по предмету ЛИТ'!E38","v":"Радикович"},"м",{"$f":"'[1]Протокол ШЭ ВОШ по предмету ЛИТ'!H38","v":"нет"},{"$f":"'[1]Протокол ШЭ ВОШ по предмету ЛИТ'!I38","v":5},{"$f":"'[1]Протокол ШЭ ВОШ по предмету ЛИТ'!J38","v":5},{"$f":"'[1]Протокол ШЭ ВОШ по предмету ЛИТ'!K38","v":0},{"$f":"'[1]Протокол ШЭ ВОШ по предмету ЛИТ'!L38","v":8},{"$f":"'[1]Протокол ШЭ ВОШ по предмету ЛИТ'!M38","v":"участник"},null,{"$f":"'[1]Протокол ШЭ ВОШ по предмету ЛИТ'!O38","v":"Тимонина Ирина Николаевна"},{"$f":"'[1]Протокол ШЭ ВОШ по предмету ЛИТ'!P38","v":"Муниципальное бюджетное общеобразовательное учреждение \"Многопрофильный лицей №37\" Нижнекамского муниципального района Республики Татарстан"}]
[{"$f":"'[1]Протокол ШЭ ВОШ по предмету ЛИТ'!A39","v":38},{"$f":"'[1]Протокол ШЭ ВОШ по предмету ЛИТ'!C39","v":"Трифонов"},{"$f":"'[1]Протокол ШЭ ВОШ по предмету ЛИТ'!D39","v":"Евгений"},{"$f":"'[1]Протокол ШЭ ВОШ по предмету ЛИТ'!E39","v":"Евгеньевич"},"м",{"$f":"'[1]Протокол ШЭ ВОШ по предмету ЛИТ'!H39","v":"нет"},{"$f":"'[1]Протокол ШЭ ВОШ по предмету ЛИТ'!I39","v":5},{"$f":"'[1]Протокол ШЭ ВОШ по предмету ЛИТ'!J39","v":5},{"$f":"'[1]Протокол ШЭ ВОШ по предмету ЛИТ'!K39","v":0},{"$f":"'[1]Протокол ШЭ ВОШ по предмету ЛИТ'!L39","v":8},{"$f":"'[1]Протокол ШЭ ВОШ по предмету ЛИТ'!M39","v":"участник"},null,{"$f":"'[1]Протокол ШЭ ВОШ по предмету ЛИТ'!O39","v":"Тимонина Ирина Николаевна"},{"$f":"'[1]Протокол ШЭ ВОШ по предмету ЛИТ'!P39","v":"Муниципальное бюджетное общеобразовательное учреждение \"Многопрофильный лицей №37\" Нижнекамского муниципального района Республики Татарстан"}]
[{"$f":"'[1]Протокол ШЭ ВОШ по предмету ЛИТ'!A40","v":39},{"$f":"'[1]Протокол ШЭ ВОШ по предмету ЛИТ'!C40","v":"Бикмурзин"},{"$f":"'[1]Протокол ШЭ ВОШ по предмету ЛИТ'!D40","v":"Амир"},{"$f":"'[1]Протокол ШЭ ВОШ по предмету ЛИТ'!E40","v":"Айдарович"},"м",{"$f":"'[1]Протокол ШЭ ВОШ по предмету ЛИТ'!H40","v":"нет"},{"$f":"'[1]Протокол ШЭ ВОШ по предмету ЛИТ'!I40","v":6},{"$f":"'[1]Протокол ШЭ ВОШ по предмету ЛИТ'!J40","v":6},{"$f":"'[1]Протокол ШЭ ВОШ по предмету ЛИТ'!K40","v":6},{"$f":"'[1]Протокол ШЭ ВОШ по предмету ЛИТ'!L40","v":8},{"$f":"'[1]Протокол ШЭ ВОШ по предмету ЛИТ'!M40","v":"победитель"},null,{"$f":"'[1]Протокол ШЭ ВОШ по предмету ЛИТ'!O40","v":"Хохлова Надежда Николаевна"},{"$f":"'[1]Протокол ШЭ ВОШ по предмету ЛИТ'!P40","v":"Муниципальное бюджетное общеобразовательное учреждение \"Многопрофильный лицей №37\" Нижнекамского муниципального района Республики Татарстан"}]
[{"$f":"'[1]Протокол ШЭ ВОШ по предмету ЛИТ'!A41","v":40},{"$f":"'[1]Протокол ШЭ ВОШ по предмету ЛИТ'!C41","v":"Ванюков"},{"$f":"'[1]Протокол ШЭ ВОШ по предмету ЛИТ'!D41","v":"Кирилл"},{"$f":"'[1]Протокол ШЭ ВОШ по предмету ЛИТ'!E41","v":"Алексеевич"},"м",{"$f":"'[1]Протокол ШЭ ВОШ по предмету ЛИТ'!H41","v":"нет"},{"$f":"'[1]Протокол ШЭ ВОШ по предмету ЛИТ'!I41","v":6},{"$f":"'[1]Протокол ШЭ ВОШ по предмету ЛИТ'!J41","v":6},{"$f":"'[1]Протокол ШЭ ВОШ по предмету ЛИТ'!K41","v":4},{"$f":"'[1]Протокол ШЭ ВОШ по предмету ЛИТ'!L41","v":8},{"$f":"'[1]Протокол ШЭ ВОШ по предмету ЛИТ'!M41","v":"призер"},null,{"$f":"'[1]Протокол ШЭ ВОШ по предмету ЛИТ'!O41","v":"Хохлова Надежда Николаевна"},{"$f":"'[1]Протокол ШЭ ВОШ по предмету ЛИТ'!P41","v":"Муниципальное бюджетное общеобразовательное учреждение \"Многопрофильный лицей №37\" Нижнекамского муниципального района Республики Татарстан"}]
[{"$f":"'[1]Протокол ШЭ ВОШ по предмету ЛИТ'!A42","v":41},{"$f":"'[1]Протокол ШЭ ВОШ по предмету ЛИТ'!C42","v":"Ахметов"},{"$f":"'[1]Протокол ШЭ ВОШ по предмету ЛИТ'!D42","v":"Азат"},{"$f":"'[1]Протокол ШЭ ВОШ по предмету ЛИТ'!E42","v":"Алмазович"},"м",{"$f":"'[1]Протокол ШЭ ВОШ по предмету ЛИТ'!H42","v":"нет"},{"$f":"'[1]Протокол ШЭ ВОШ по предмету ЛИТ'!I42","v":6},{"$f":"'[1]Протокол ШЭ ВОШ по предмету ЛИТ'!J42","v":6},{"$f":"'[1]Протокол ШЭ ВОШ по предмету ЛИТ'!K42","v":3},{"$f":"'[1]Протокол ШЭ ВОШ по предмету ЛИТ'!L42","v":8},{"$f":"'[1]Протокол ШЭ ВОШ по предмету ЛИТ'!M42","v":"участник"},null,{"$f":"'[1]Протокол ШЭ ВОШ по предмету ЛИТ'!O42","v":"Тимонина Ирина Николаевна"},{"$f":"'[1]Протокол ШЭ ВОШ по предмету ЛИТ'!P42","v":"Муниципальное бюджетное общеобразовательное учреждение \"Многопрофильный лицей №37\" Нижнекамского муниципального района Республики Татарстан"}]
[{"$f":"'[1]Протокол ШЭ ВОШ по предмету ЛИТ'!A43","v":42},{"$f":"'[1]Протокол ШЭ ВОШ по предмету ЛИТ'!C43","v":"Асмандияров"},{"$f":"'[1]Протокол ШЭ ВОШ по предмету ЛИТ'!D43","v":"Радик"},{"$f":"'[1]Протокол ШЭ ВОШ по предмету ЛИТ'!E43","v":"Рафаэлевич"},"м",{"$f":"'[1]Протокол ШЭ ВОШ по предмету ЛИТ'!H43","v":"нет"},{"$f":"'[1]Протокол ШЭ ВОШ по предмету ЛИТ'!I43","v":6},{"$f":"'[1]Протокол ШЭ ВОШ по предмету ЛИТ'!J43","v":6},{"$f":"'[1]Протокол ШЭ ВОШ по предмету ЛИТ'!K43","v":3},{"$f":"'[1]Протокол ШЭ ВОШ по предмету ЛИТ'!L43","v":8},{"$f":"'[1]Протокол ШЭ ВОШ по предмету ЛИТ'!M43","v":"участник"},null,{"$f":"'[1]Протокол ШЭ ВОШ по предмету ЛИТ'!O43","v":"Тимонина Ирина Николаевна"},{"$f":"'[1]Протокол ШЭ ВОШ по предмету ЛИТ'!P43","v":"Муниципальное бюджетное общеобразовательное учреждение \"Многопрофильный лицей №37\" Нижнекамского муниципального района Республики Татарстан"}]
[{"$f":"'[1]Протокол ШЭ ВОШ по предмету ЛИТ'!A44","v":43},{"$f":"'[1]Протокол ШЭ ВОШ по предмету ЛИТ'!C44","v":"Нагимов"},{"$f":"'[1]Протокол ШЭ ВОШ по предмету ЛИТ'!D44","v":"Рафиль"},{"$f":"'[1]Протокол ШЭ ВОШ по предмету ЛИТ'!E44","v":"Ильшатович"},"м",{"$f":"'[1]Протокол ШЭ ВОШ по предмету ЛИТ'!H44","v":"нет"},{"$f":"'[1]Протокол ШЭ ВОШ по предмету ЛИТ'!I44","v":6},{"$f":"'[1]Протокол ШЭ ВОШ по предмету ЛИТ'!J44","v":6},{"$f":"'[1]Протокол ШЭ ВОШ по предмету ЛИТ'!K44","v":3},{"$f":"'[1]Протокол ШЭ ВОШ по предмету ЛИТ'!L44","v":8},{"$f":"'[1]Протокол ШЭ ВОШ по предмету ЛИТ'!M44","v":"участник"},null,{"$f":"'[1]Протокол ШЭ ВОШ по предмету ЛИТ'!O44","v":"Хохлова Надежда Николаевна"},{"$f":"'[1]Протокол ШЭ ВОШ по предмету ЛИТ'!P44","v":"Муниципальное бюджетное общеобразовательное учреждение \"Многопрофильный лицей №37\" Нижнекамского муниципального района Республики Татарстан"}]
[{"$f":"'[1]Протокол ШЭ ВОШ по предмету ЛИТ'!A45","v":44},{"$f":"'[1]Протокол ШЭ ВОШ по предмету ЛИТ'!C45","v":"Кузьмина"},{"$f":"'[1]Протокол ШЭ ВОШ по предмету ЛИТ'!D45","v":"Арина"},{"$f":"'[1]Протокол ШЭ ВОШ по предмету ЛИТ'!E45","v":"Андреевна"},"ж",{"$f":"'[1]Протокол ШЭ ВОШ по предмету ЛИТ'!H45","v":"нет"},{"$f":"'[1]Протокол ШЭ ВОШ по предмету ЛИТ'!I45","v":6},{"$f":"'[1]Протокол ШЭ ВОШ по предмету ЛИТ'!J45","v":6},{"$f":"'[1]Протокол ШЭ ВОШ по предмету ЛИТ'!K45","v":2},{"$f":"'[1]Протокол ШЭ ВОШ по предмету ЛИТ'!L45","v":8},{"$f":"'[1]Протокол ШЭ ВОШ по предмету ЛИТ'!M45","v":"участник"},null,{"$f":"'[1]Протокол ШЭ ВОШ по предмету ЛИТ'!O45","v":"Тимонина Ирина Николаевна"},{"$f":"'[1]Протокол ШЭ ВОШ по предмету ЛИТ'!P45","v":"Муниципальное бюджетное общеобразовательное учреждение \"Многопрофильный лицей №37\" Нижнекамского муниципального района Республики Татарстан"}]
[{"$f":"'[1]Протокол ШЭ ВОШ по предмету ЛИТ'!A46","v":45},{"$f":"'[1]Протокол ШЭ ВОШ по предмету ЛИТ'!C46","v":"Сагдеева"},{"$f":"'[1]Протокол ШЭ ВОШ по предмету ЛИТ'!D46","v":"Ясмина"},{"$f":"'[1]Протокол ШЭ ВОШ по предмету ЛИТ'!E46","v":"Фанисовна"},"ж",{"$f":"'[1]Протокол ШЭ ВОШ по предмету ЛИТ'!H46","v":"нет"},{"$f":"'[1]Протокол ШЭ ВОШ по предмету ЛИТ'!I46","v":6},{"$f":"'[1]Протокол ШЭ ВОШ по предмету ЛИТ'!J46","v":6},{"$f":"'[1]Протокол ШЭ ВОШ по предмету ЛИТ'!K46","v":2},{"$f":"'[1]Протокол ШЭ ВОШ по предмету ЛИТ'!L46","v":8},{"$f":"'[1]Протокол ШЭ ВОШ по предмету ЛИТ'!M46","v":"участник"},null,{"$f":"'[1]Протокол ШЭ ВОШ по предмету ЛИТ'!O46","v":"Тимонина Ирина Николаевна"},{"$f":"'[1]Протокол ШЭ ВОШ по предмету ЛИТ'!P46","v":"Муниципальное бюджетное общеобразовательное учреждение \"Многопрофильный лицей №37\" Нижнекамского муниципального района Республики Татарстан"}]
[{"$f":"'[1]Протокол ШЭ ВОШ по предмету ЛИТ'!A47","v":46},{"$f":"'[1]Протокол ШЭ ВОШ по предмету ЛИТ'!C47","v":"Биккинин"},{"$f":"'[1]Протокол ШЭ ВОШ по предмету ЛИТ'!D47","v":"Самат"},{"$f":"'[1]Протокол ШЭ ВОШ по предмету ЛИТ'!E47","v":"Айратович"},"м",{"$f":"'[1]Протокол ШЭ ВОШ по предмету ЛИТ'!H47","v":"нет"},{"$f":"'[1]Протокол ШЭ ВОШ по предмету ЛИТ'!I47","v":6},{"$f":"'[1]Протокол ШЭ ВОШ по предмету ЛИТ'!J47","v":6},{"$f":"'[1]Протокол ШЭ ВОШ по предмету ЛИТ'!K47","v":2},{"$f":"'[1]Протокол ШЭ ВОШ по предмету ЛИТ'!L47","v":8},{"$f":"'[1]Протокол ШЭ ВОШ по предмету ЛИТ'!M47","v":"участник"},null,{"$f":"'[1]Протокол ШЭ ВОШ по предмету ЛИТ'!O47","v":"Тимонина Ирина Николаевна"},{"$f":"'[1]Протокол ШЭ ВОШ по предмету ЛИТ'!P47","v":"Муниципальное бюджетное общеобразовательное учреждение \"Многопрофильный лицей №37\" Нижнекамского муниципального района Республики Татарстан"}]
[{"$f":"'[1]Протокол ШЭ ВОШ по предмету ЛИТ'!A48","v":47},{"$f":"'[1]Протокол ШЭ ВОШ по предмету ЛИТ'!C48","v":"Хамидуллин"},{"$f":"'[1]Протокол ШЭ ВОШ по предмету ЛИТ'!D48","v":"Ислам"},{"$f":"'[1]Протокол ШЭ ВОШ по предмету ЛИТ'!E48","v":"Ильмирович"},"м",{"$f":"'[1]Протокол ШЭ ВОШ по предмету ЛИТ'!H48","v":"нет"},{"$f":"'[1]Протокол ШЭ ВОШ по предмету ЛИТ'!I48","v":6},{"$f":"'[1]Протокол ШЭ ВОШ по предмету ЛИТ'!J48","v":6},{"$f":"'[1]Протокол ШЭ ВОШ по предмету ЛИТ'!K48","v":2},{"$f":"'[1]Протокол ШЭ ВОШ по предмету ЛИТ'!L48","v":8},{"$f":"'[1]Протокол ШЭ ВОШ по предмету ЛИТ'!M48","v":"участник"},null,{"$f":"'[1]Протокол ШЭ ВОШ по предмету ЛИТ'!O48","v":"Тимонина Ирина Николаевна"},{"$f":"'[1]Протокол ШЭ ВОШ по предмету ЛИТ'!P48","v":"Муниципальное бюджетное общеобразовательное учреждение \"Многопрофильный лицей №37\" Нижнекамского муниципального района Республики Татарстан"}]
[{"$f":"'[1]Протокол ШЭ ВОШ по предмету ЛИТ'!A49","v":48},{"$f":"'[1]Протокол ШЭ ВОШ по предмету ЛИТ'!C49","v":"Носков"},{"$f":"'[1]Протокол ШЭ ВОШ по предмету ЛИТ'!D49","v":"Максим"},{"$f":"'[1]Протокол ШЭ ВОШ по предмету ЛИТ'!E49","v":"Антонович"},"м",{"$f":"'[1]Протокол ШЭ ВОШ по предмету ЛИТ'!H49","v":"нет"},{"$f":"'[1]Протокол ШЭ ВОШ по предмету ЛИТ'!I49","v":6},{"$f":"'[1]Протокол ШЭ ВОШ по предмету ЛИТ'!J49","v":6},{"$f":"'[1]Протокол ШЭ ВОШ по предмету ЛИТ'!K49","v":2},{"$f":"'[1]Протокол ШЭ ВОШ по предмету ЛИТ'!L49","v":8},{"$f":"'[1]Протокол ШЭ ВОШ по предмету ЛИТ'!M49","v":"участник"},null,{"$f":"'[1]Протокол ШЭ ВОШ по предмету ЛИТ'!O49","v":"Тимонина Ирина Николаевна"},{"$f":"'[1]Протокол ШЭ ВОШ по предмету ЛИТ'!P49","v":"Муниципальное бюджетное общеобразовательное учреждение \"Многопрофильный лицей №37\" Нижнекамского муниципального района Республики Татарстан"}]
[{"$f":"'[1]Протокол ШЭ ВОШ по предмету ЛИТ'!A50","v":49},{"$f":"'[1]Протокол ШЭ ВОШ по предмету ЛИТ'!C50","v":"Буреев"},{"$f":"'[1]Протокол ШЭ ВОШ по предмету ЛИТ'!D50","v":"Кирилл"},{"$f":"'[1]Протокол ШЭ ВОШ по предмету ЛИТ'!E50","v":"Евгеньевич"},"м",{"$f":"'[1]Протокол ШЭ ВОШ по предмету ЛИТ'!H50","v":"нет"},{"$f":"'[1]Протокол ШЭ ВОШ по предмету ЛИТ'!I50","v":6},{"$f":"'[1]Протокол ШЭ ВОШ по предмету ЛИТ'!J50","v":6},{"$f":"'[1]Протокол ШЭ ВОШ по предмету ЛИТ'!K50","v":2},{"$f":"'[1]Протокол ШЭ ВОШ по предмету ЛИТ'!L50","v":8},{"$f":"'[1]Протокол ШЭ ВОШ по предмету ЛИТ'!M50","v":"участник"},null,{"$f":"'[1]Протокол ШЭ ВОШ по предмету ЛИТ'!O50","v":"Тимонина Ирина Николаевна"},{"$f":"'[1]Протокол ШЭ ВОШ по предмету ЛИТ'!P50","v":"Муниципальное бюджетное общеобразовательное учреждение \"Многопрофильный лицей №37\" Нижнекамского муниципального района Республики Татарстан"}]
[{"$f":"'[1]Протокол ШЭ ВОШ по предмету ЛИТ'!A51","v":50},{"$f":"'[1]Протокол ШЭ ВОШ по предмету ЛИТ'!C51","v":"Шарипянов"},{"$f":"'[1]Протокол ШЭ ВОШ по предмету ЛИТ'!D51","v":"Амир"},{"$f":"'[1]Протокол ШЭ ВОШ по предмету ЛИТ'!E51","v":"Ниязович"},"м",{"$f":"'[1]Протокол ШЭ ВОШ по предмету ЛИТ'!H51","v":"нет"},{"$f":"'[1]Протокол ШЭ ВОШ по предмету ЛИТ'!I51","v":6},{"$f":"'[1]Протокол ШЭ ВОШ по предмету ЛИТ'!J51","v":6},{"$f":"'[1]Протокол ШЭ ВОШ по предмету ЛИТ'!K51","v":2},{"$f":"'[1]Протокол ШЭ ВОШ по предмету ЛИТ'!L51","v":8},{"$f":"'[1]Протокол ШЭ ВОШ по предмету ЛИТ'!M51","v":"участник"},null,{"$f":"'[1]Протокол ШЭ ВОШ по предмету ЛИТ'!O51","v":"Хохлова Надежда Николаевна"},{"$f":"'[1]Протокол ШЭ ВОШ по предмету ЛИТ'!P51","v":"Муниципальное бюджетное общеобразовательное учреждение \"Многопрофильный лицей №37\" Нижнекамского муниципального района Республики Татарстан"}]
[{"$f":"'[1]Протокол ШЭ ВОШ по предмету ЛИТ'!A52","v":51},{"$f":"'[1]Протокол ШЭ ВОШ по предмету ЛИТ'!C52","v":"Рахматуллин"},{"$f":"'[1]Протокол ШЭ ВОШ по предмету ЛИТ'!D52","v":"Ильгиз"},{"$f":"'[1]Протокол ШЭ ВОШ по предмету ЛИТ'!E52","v":"Ильнурович"},"м",{"$f":"'[1]Протокол ШЭ ВОШ по предмету ЛИТ'!H52","v":"нет"},{"$f":"'[1]Протокол ШЭ ВОШ по предмету ЛИТ'!I52","v":6},{"$f":"'[1]Протокол ШЭ ВОШ по предмету ЛИТ'!J52","v":6},{"$f":"'[1]Протокол ШЭ ВОШ по предмету ЛИТ'!K52","v":1},{"$f":"'[1]Протокол ШЭ ВОШ по предмету ЛИТ'!L52","v":8},{"$f":"'[1]Протокол ШЭ ВОШ по предмету ЛИТ'!M52","v":"участник"},null,{"$f":"'[1]Протокол ШЭ ВОШ по предмету ЛИТ'!O52","v":"Тимонина .Ирина Николаевна"},{"$f":"'[1]Протокол ШЭ ВОШ по предмету ЛИТ'!P52","v":"Муниципальное бюджетное общеобразовательное учреждение \"Многопрофильный лицей №37\" Нижнекамского муниципального района Республики Татарстан"}]
[{"$f":"'[1]Протокол ШЭ ВОШ по предмету ЛИТ'!A53","v":52},{"$f":"'[1]Протокол ШЭ ВОШ по предмету ЛИТ'!C53","v":"Ахметжанова"},{"$f":"'[1]Протокол ШЭ ВОШ по предмету ЛИТ'!D53","v":"Лейла"},{"$f":"'[1]Протокол ШЭ ВОШ по предмету ЛИТ'!E53","v":"Разумовна"},"ж",{"$f":"'[1]Протокол ШЭ ВОШ по предмету ЛИТ'!H53","v":"нет"},{"$f":"'[1]Протокол ШЭ ВОШ по предмету ЛИТ'!I53","v":6},{"$f":"'[1]Протокол ШЭ ВОШ по предмету ЛИТ'!J53","v":6},{"$f":"'[1]Протокол ШЭ ВОШ по предмету ЛИТ'!K53","v":1},{"$f":"'[1]Протокол ШЭ ВОШ по предмету ЛИТ'!L53","v":8},{"$f":"'[1]Протокол ШЭ ВОШ по предмету ЛИТ'!M53","v":"участник"},null,{"$f":"'[1]Протокол ШЭ ВОШ по предмету ЛИТ'!O53","v":"Тимонина .Ирина Николаевна"},{"$f":"'[1]Протокол ШЭ ВОШ по предмету ЛИТ'!P53","v":"Муниципальное бюджетное общеобразовательное учреждение \"Многопрофильный лицей №37\" Нижнекамского муниципального района Республики Татарстан"}]
[{"$f":"'[1]Протокол ШЭ ВОШ по предмету ЛИТ'!A54","v":53},{"$f":"'[1]Протокол ШЭ ВОШ по предмету ЛИТ'!C54","v":"Гайнутдинова"},{"$f":"'[1]Протокол ШЭ ВОШ по предмету ЛИТ'!D54","v":"Динара"},{"$f":"'[1]Протокол ШЭ ВОШ по предмету ЛИТ'!E54","v":"Дамировна"},"ж",{"$f":"'[1]Протокол ШЭ ВОШ по предмету ЛИТ'!H54","v":"нет"},{"$f":"'[1]Протокол ШЭ ВОШ по предмету ЛИТ'!I54","v":6},{"$f":"'[1]Протокол ШЭ ВОШ по предмету ЛИТ'!J54","v":6},{"$f":"'[1]Протокол ШЭ ВОШ по предмету ЛИТ'!K54","v":1},{"$f":"'[1]Протокол ШЭ ВОШ по предмету ЛИТ'!L54","v":8},{"$f":"'[1]Протокол ШЭ ВОШ по предмету ЛИТ'!M54","v":"участник"},null,{"$f":"'[1]Протокол ШЭ ВОШ по предмету ЛИТ'!O54","v":"Тимонина Ирина Николаевна"},{"$f":"'[1]Протокол ШЭ ВОШ по предмету ЛИТ'!P54","v":"Муниципальное бюджетное общеобразовательное учреждение \"Многопрофильный лицей №37\" Нижнекамского муниципального района Республики Татарстан"}]
[{"$f":"'[1]Протокол ШЭ ВОШ по предмету ЛИТ'!A55","v":54},{"$f":"'[1]Протокол ШЭ ВОШ по предмету ЛИТ'!C55","v":"Лебедев"},{"$f":"'[1]Протокол ШЭ ВОШ по предмету ЛИТ'!D55","v":"Виталий"},{"$f":"'[1]Протокол ШЭ ВОШ по предмету ЛИТ'!E55","v":"Андреевич"},"м",{"$f":"'[1]Протокол ШЭ ВОШ по предмету ЛИТ'!H55","v":"нет"},{"$f":"'[1]Протокол ШЭ ВОШ по предмету ЛИТ'!I55","v":6},{"$f":"'[1]Протокол ШЭ ВОШ по предмету ЛИТ'!J55","v":6},{"$f":"'[1]Протокол ШЭ ВОШ по предмету ЛИТ'!K55","v":1},{"$f":"'[1]Протокол ШЭ ВОШ по предмету ЛИТ'!L55","v":8},{"$f":"'[1]Протокол ШЭ ВОШ по предмету ЛИТ'!M55","v":"участник"},null,{"$f":"'[1]Протокол ШЭ ВОШ по предмету ЛИТ'!O55","v":"Тимонина Ирина Николаевна"},{"$f":"'[1]Протокол ШЭ ВОШ по предмету ЛИТ'!P55","v":"Муниципальное бюджетное общеобразовательное учреждение \"Многопрофильный лицей №37\" Нижнекамского муниципального района Республики Татарстан"}]
[{"$f":"'[1]Протокол ШЭ ВОШ по предмету ЛИТ'!A56","v":55},{"$f":"'[1]Протокол ШЭ ВОШ по предмету ЛИТ'!C56","v":"Дарьина"},{"$f":"'[1]Протокол ШЭ ВОШ по предмету ЛИТ'!D56","v":"Мария"},{"$f":"'[1]Протокол ШЭ ВОШ по предмету ЛИТ'!E56","v":"Витальевна"},"ж",{"$f":"'[1]Протокол ШЭ ВОШ по предмету ЛИТ'!H56","v":"нет"},{"$f":"'[1]Протокол ШЭ ВОШ по предмету ЛИТ'!I56","v":6},{"$f":"'[1]Протокол ШЭ ВОШ по предмету ЛИТ'!J56","v":6},{"$f":"'[1]Протокол ШЭ ВОШ по предмету ЛИТ'!K56","v":1},{"$f":"'[1]Протокол ШЭ ВОШ по предмету ЛИТ'!L56","v":8},{"$f":"'[1]Протокол ШЭ ВОШ по предмету ЛИТ'!M56","v":"участник"},null,{"$f":"'[1]Протокол ШЭ ВОШ по предмету ЛИТ'!O56","v":"Тимонина Ирина Николаевна"},{"$f":"'[1]Протокол ШЭ ВОШ по предмету ЛИТ'!P56","v":"Муниципальное бюджетное общеобразовательное учреждение \"Многопрофильный лицей №37\" Нижнекамского муниципального района Республики Татарстан"}]
[{"$f":"'[1]Протокол ШЭ ВОШ по предмету ЛИТ'!A57","v":56},{"$f":"'[1]Протокол ШЭ ВОШ по предмету ЛИТ'!C57","v":"Миронов"},{"$f":"'[1]Протокол ШЭ ВОШ по предмету ЛИТ'!D57","v":"Ярослав"},{"$f":"'[1]Протокол ШЭ ВОШ по предмету ЛИТ'!E57","v":"Александрович"},"м",{"$f":"'[1]Протокол ШЭ ВОШ по предмету ЛИТ'!H57","v":"нет"},{"$f":"'[1]Протокол ШЭ ВОШ по предмету ЛИТ'!I57","v":6},{"$f":"'[1]Протокол ШЭ ВОШ по предмету ЛИТ'!J57","v":6},{"$f":"'[1]Протокол ШЭ ВОШ по предмету ЛИТ'!K57","v":1},{"$f":"'[1]Протокол ШЭ ВОШ по предмету ЛИТ'!L57","v":8},{"$f":"'[1]Протокол ШЭ ВОШ по предмету ЛИТ'!M57","v":"участник"},null,{"$f":"'[1]Протокол ШЭ ВОШ по предмету ЛИТ'!O57","v":"Тимонина Ирина Николаевна"},{"$f":"'[1]Протокол ШЭ ВОШ по предмету ЛИТ'!P57","v":"Муниципальное бюджетное общеобразовательное учреждение \"Многопрофильный лицей №37\" Нижнекамского муниципального района Республики Татарстан"}]
[{"$f":"'[1]Протокол ШЭ ВОШ по предмету ЛИТ'!A58","v":57},{"$f":"'[1]Протокол ШЭ ВОШ по предмету ЛИТ'!C58","v":"Утробин"},{"$f":"'[1]Протокол ШЭ ВОШ по предмету ЛИТ'!D58","v":"Алексей"},{"$f":"'[1]Протокол ШЭ ВОШ по предмету ЛИТ'!E58","v":"Ильич"},"м",{"$f":"'[1]Протокол ШЭ ВОШ по предмету ЛИТ'!H58","v":"нет"},{"$f":"'[1]Протокол ШЭ ВОШ по предмету ЛИТ'!I58","v":6},{"$f":"'[1]Протокол ШЭ ВОШ по предмету ЛИТ'!J58","v":6},{"$f":"'[1]Протокол ШЭ ВОШ по предмету ЛИТ'!K58","v":1},{"$f":"'[1]Протокол ШЭ ВОШ по предмету ЛИТ'!L58","v":8},{"$f":"'[1]Протокол ШЭ ВОШ по предмету ЛИТ'!M58","v":"участник"},null,{"$f":"'[1]Протокол ШЭ ВОШ по предмету ЛИТ'!O58","v":"Тимонина Ирина Николаевна"},{"$f":"'[1]Протокол ШЭ ВОШ по предмету ЛИТ'!P58","v":"Муниципальное бюджетное общеобразовательное учреждение \"Многопрофильный лицей №37\" Нижнекамского муниципального района Республики Татарстан"}]
[{"$f":"'[1]Протокол ШЭ ВОШ по предмету ЛИТ'!A59","v":58},{"$f":"'[1]Протокол ШЭ ВОШ по предмету ЛИТ'!C59","v":"Липанин"},{"$f":"'[1]Протокол ШЭ ВОШ по предмету ЛИТ'!D59","v":"Всеволод"},{"$f":"'[1]Протокол ШЭ ВОШ по предмету ЛИТ'!E59","v":"Геннадьевич"},"м",{"$f":"'[1]Протокол ШЭ ВОШ по предмету ЛИТ'!H59","v":"нет"},{"$f":"'[1]Протокол ШЭ ВОШ по предмету ЛИТ'!I59","v":6},{"$f":"'[1]Протокол ШЭ ВОШ по предмету ЛИТ'!J59","v":6},{"$f":"'[1]Протокол ШЭ ВОШ по предмету ЛИТ'!K59","v":1},{"$f":"'[1]Протокол ШЭ ВОШ по предмету ЛИТ'!L59","v":8},{"$f":"'[1]Протокол ШЭ ВОШ по предмету ЛИТ'!M59","v":"участник"},null,{"$f":"'[1]Протокол ШЭ ВОШ по предмету ЛИТ'!O59","v":"Тимонина Ирина Николаевна"},{"$f":"'[1]Протокол ШЭ ВОШ по предмету ЛИТ'!P59","v":"Муниципальное бюджетное общеобразовательное учреждение \"Многопрофильный лицей №37\" Нижнекамского муниципального района Республики Татарстан"}]
[{"$f":"'[1]Протокол ШЭ ВОШ по предмету ЛИТ'!A60","v":59},{"$f":"'[1]Протокол ШЭ ВОШ по предмету ЛИТ'!C60","v":"Штокало"},{"$f":"'[1]Протокол ШЭ ВОШ по предмету ЛИТ'!D60","v":"Марк"},{"$f":"'[1]Протокол ШЭ ВОШ по предмету ЛИТ'!E60","v":"Кириллович"},"м",{"$f":"'[1]Протокол ШЭ ВОШ по предмету ЛИТ'!H60","v":"нет"},{"$f":"'[1]Протокол ШЭ ВОШ по предмету ЛИТ'!I60","v":6},{"$f":"'[1]Протокол ШЭ ВОШ по предмету ЛИТ'!J60","v":6},{"$f":"'[1]Протокол ШЭ ВОШ по предмету ЛИТ'!K60","v":1},{"$f":"'[1]Протокол ШЭ ВОШ по предмету ЛИТ'!L60","v":8},{"$f":"'[1]Протокол ШЭ ВОШ по предмету ЛИТ'!M60","v":"участник"},null,{"$f":"'[1]Протокол ШЭ ВОШ по предмету ЛИТ'!O60","v":"Хохлова Надежда Николаевна"},{"$f":"'[1]Протокол ШЭ ВОШ по предмету ЛИТ'!P60","v":"Муниципальное бюджетное общеобразовательное учреждение \"Многопрофильный лицей №37\" Нижнекамского муниципального района Республики Татарстан"}]
[{"$f":"'[1]Протокол ШЭ ВОШ по предмету ЛИТ'!A61","v":60},{"$f":"'[1]Протокол ШЭ ВОШ по предмету ЛИТ'!C61","v":"Черемисина"},{"$f":"'[1]Протокол ШЭ ВОШ по предмету ЛИТ'!D61","v":"София"},{"$f":"'[1]Протокол ШЭ ВОШ по предмету ЛИТ'!E61","v":"Андреевна"},"ж",{"$f":"'[1]Протокол ШЭ ВОШ по предмету ЛИТ'!H61","v":"нет"},{"$f":"'[1]Протокол ШЭ ВОШ по предмету ЛИТ'!I61","v":6},{"$f":"'[1]Протокол ШЭ ВОШ по предмету ЛИТ'!J61","v":6},{"$f":"'[1]Протокол ШЭ ВОШ по предмету ЛИТ'!K61","v":1},{"$f":"'[1]Протокол ШЭ ВОШ по предмету ЛИТ'!L61","v":8},{"$f":"'[1]Протокол ШЭ ВОШ по предмету ЛИТ'!M61","v":"участник"},null,{"$f":"'[1]Протокол ШЭ ВОШ по предмету ЛИТ'!O61","v":"Хохлова Надежда Николаевна"},{"$f":"'[1]Протокол ШЭ ВОШ по предмету ЛИТ'!P61","v":"Муниципальное бюджетное общеобразовательное учреждение \"Многопрофильный лицей №37\" Нижнекамского муниципального района Республики Татарстан"}]
[{"$f":"'[1]Протокол ШЭ ВОШ по предмету ЛИТ'!A62","v":61},{"$f":"'[1]Протокол ШЭ ВОШ по предмету ЛИТ'!C62","v":"Становова"},{"$f":"'[1]Протокол ШЭ ВОШ по предмету ЛИТ'!D62","v":"Дарья"},{"$f":"'[1]Протокол ШЭ ВОШ по предмету ЛИТ'!E62","v":"Евгеньевна"},"ж",{"$f":"'[1]Протокол ШЭ ВОШ по предмету ЛИТ'!H62","v":"нет"},{"$f":"'[1]Протокол ШЭ ВОШ по предмету ЛИТ'!I62","v":6},{"$f":"'[1]Протокол ШЭ ВОШ по предмету ЛИТ'!J62","v":6},{"$f":"'[1]Протокол ШЭ ВОШ по предмету ЛИТ'!K62","v":0},{"$f":"'[1]Протокол ШЭ ВОШ по предмету ЛИТ'!L62","v":8},{"$f":"'[1]Протокол ШЭ ВОШ по предмету ЛИТ'!M62","v":"участник"},null,{"$f":"'[1]Протокол ШЭ ВОШ по предмету ЛИТ'!O62","v":"Хохлова Надежда Николаевна"},{"$f":"'[1]Протокол ШЭ ВОШ по предмету ЛИТ'!P62","v":"Муниципальное бюджетное общеобразовательное учреждение \"Многопрофильный лицей №37\" Нижнекамского муниципального района Республики Татарстан"}]
[{"$f":"'[1]Протокол ШЭ ВОШ по предмету ЛИТ'!A63","v":62},{"$f":"'[1]Протокол ШЭ ВОШ по предмету ЛИТ'!C63","v":"Шандренкова"},{"$f":"'[1]Протокол ШЭ ВОШ по предмету ЛИТ'!D63","v":"Анастасия"},{"$f":"'[1]Протокол ШЭ ВОШ по предмету ЛИТ'!E63","v":"Александровна"},"ж",{"$f":"'[1]Протокол ШЭ ВОШ по предмету ЛИТ'!H63","v":"нет"},{"$f":"'[1]Протокол ШЭ ВОШ по предмету ЛИТ'!I63","v":7},{"$f":"'[1]Протокол ШЭ ВОШ по предмету ЛИТ'!J63","v":7},{"$f":"'[1]Протокол ШЭ ВОШ по предмету ЛИТ'!K63","v":5},{"$f":"'[1]Протокол ШЭ ВОШ по предмету ЛИТ'!L63","v":8},{"$f":"'[1]Протокол ШЭ ВОШ по предмету ЛИТ'!M63","v":"победитель"},null,{"$f":"'[1]Протокол ШЭ ВОШ по предмету ЛИТ'!O63","v":"Семенова Марина Валерьевна"},{"$f":"'[1]Протокол ШЭ ВОШ по предмету ЛИТ'!P63","v":"Муниципальное бюджетное общеобразовательное учреждение \"Многопрофильный лицей №37\" Нижнекамского муниципального района Республики Татарстан"}]
[{"$f":"'[1]Протокол ШЭ ВОШ по предмету ЛИТ'!A64","v":63},{"$f":"'[1]Протокол ШЭ ВОШ по предмету ЛИТ'!C64","v":"Дияров"},{"$f":"'[1]Протокол ШЭ ВОШ по предмету ЛИТ'!D64","v":"Айзат"},{"$f":"'[1]Протокол ШЭ ВОШ по предмету ЛИТ'!E64","v":"Маратович"},"м",{"$f":"'[1]Протокол ШЭ ВОШ по предмету ЛИТ'!H64","v":"нет"},{"$f":"'[1]Протокол ШЭ ВОШ по предмету ЛИТ'!I64","v":7},{"$f":"'[1]Протокол ШЭ ВОШ по предмету ЛИТ'!J64","v":7},{"$f":"'[1]Протокол ШЭ ВОШ по предмету ЛИТ'!K64","v":4},{"$f":"'[1]Протокол ШЭ ВОШ по предмету ЛИТ'!L64","v":8},{"$f":"'[1]Протокол ШЭ ВОШ по предмету ЛИТ'!M64","v":"призер"},null,{"$f":"'[1]Протокол ШЭ ВОШ по предмету ЛИТ'!O64","v":"Нуждина Олеся Евгеньевна"},{"$f":"'[1]Протокол ШЭ ВОШ по предмету ЛИТ'!P64","v":"Муниципальное бюджетное общеобразовательное учреждение \"Многопрофильный лицей №37\" Нижнекамского муниципального района Республики Татарстан"}]
[{"$f":"'[1]Протокол ШЭ ВОШ по предмету ЛИТ'!A65","v":64},{"$f":"'[1]Протокол ШЭ ВОШ по предмету ЛИТ'!C65","v":"Ахмадиева"},{"$f":"'[1]Протокол ШЭ ВОШ по предмету ЛИТ'!D65","v":"Зиля"},{"$f":"'[1]Протокол ШЭ ВОШ по предмету ЛИТ'!E65","v":"Рустемовна"},"ж",{"$f":"'[1]Протокол ШЭ ВОШ по предмету ЛИТ'!H65","v":"нет"},{"$f":"'[1]Протокол ШЭ ВОШ по предмету ЛИТ'!I65","v":7},{"$f":"'[1]Протокол ШЭ ВОШ по предмету ЛИТ'!J65","v":7},{"$f":"'[1]Протокол ШЭ ВОШ по предмету ЛИТ'!K65","v":2},{"$f":"'[1]Протокол ШЭ ВОШ по предмету ЛИТ'!L65","v":8},{"$f":"'[1]Протокол ШЭ ВОШ по предмету ЛИТ'!M65","v":"призер"},null,{"$f":"'[1]Протокол ШЭ ВОШ по предмету ЛИТ'!O65","v":"Семенова Марина Валерьевна"},{"$f":"'[1]Протокол ШЭ ВОШ по предмету ЛИТ'!P65","v":"Муниципальное бюджетное общеобразовательное учреждение \"Многопрофильный лицей №37\" Нижнекамского муниципального района Республики Татарстан"}]
[{"$f":"'[1]Протокол ШЭ ВОШ по предмету ЛИТ'!A66","v":65},{"$f":"'[1]Протокол ШЭ ВОШ по предмету ЛИТ'!C66","v":"Юлмухаметов"},{"$f":"'[1]Протокол ШЭ ВОШ по предмету ЛИТ'!D66","v":"Рамир"},{"$f":"'[1]Протокол ШЭ ВОШ по предмету ЛИТ'!E66","v":"Рамилевич"},"м",{"$f":"'[1]Протокол ШЭ ВОШ по предмету ЛИТ'!H66","v":"нет"},{"$f":"'[1]Протокол ШЭ ВОШ по предмету ЛИТ'!I66","v":7},{"$f":"'[1]Протокол ШЭ ВОШ по предмету ЛИТ'!J66","v":7},{"$f":"'[1]Протокол ШЭ ВОШ по предмету ЛИТ'!K66","v":2},{"$f":"'[1]Протокол ШЭ ВОШ по предмету ЛИТ'!L66","v":8},{"$f":"'[1]Протокол ШЭ ВОШ по предмету ЛИТ'!M66","v":"призер"},null,{"$f":"'[1]Протокол ШЭ ВОШ по предмету ЛИТ'!O66","v":"Нуждина Олеся Евгеньевна"},{"$f":"'[1]Протокол ШЭ ВОШ по предмету ЛИТ'!P66","v":"Муниципальное бюджетное общеобразовательное учреждение \"Многопрофильный лицей №37\" Нижнекамского муниципального района Республики Татарстан"}]
[{"$f":"'[1]Протокол ШЭ ВОШ по предмету ЛИТ'!A67","v":66},{"$f":"'[1]Протокол ШЭ ВОШ по предмету ЛИТ'!C67","v":"Газеева"},{"$f":"'[1]Протокол ШЭ ВОШ по предмету ЛИТ'!D67","v":"Мария"},{"$f":"'[1]Протокол ШЭ ВОШ по предмету ЛИТ'!E67","v":"Маратовна"},"ж",{"$f":"'[1]Протокол ШЭ ВОШ по предмету ЛИТ'!H67","v":"нет"},{"$f":"'[1]Протокол ШЭ ВОШ по предмету ЛИТ'!I67","v":7},{"$f":"'[1]Протокол ШЭ ВОШ по предмету ЛИТ'!J67","v":7},{"$f":"'[1]Протокол ШЭ ВОШ по предмету ЛИТ'!K67","v":2},{"$f":"'[1]Протокол ШЭ ВОШ по предмету ЛИТ'!L67","v":8},{"$f":"'[1]Протокол ШЭ ВОШ по предмету ЛИТ'!M67","v":"участник"},null,{"$f":"'[1]Протокол ШЭ ВОШ по предмету ЛИТ'!O67","v":"Нуждина Олеся Евгеньевна"},{"$f":"'[1]Протокол ШЭ ВОШ по предмету ЛИТ'!P67","v":"Муниципальное бюджетное общеобразовательное учреждение \"Многопрофильный лицей №37\" Нижнекамского муниципального района Республики Татарстан"}]
[{"$f":"'[1]Протокол ШЭ ВОШ по предмету ЛИТ'!A68","v":67},{"$f":"'[1]Протокол ШЭ ВОШ по предмету ЛИТ'!C68","v":"Бадртдинова"},{"$f":"'[1]Протокол ШЭ ВОШ по предмету ЛИТ'!D68","v":"Алина"},{"$f":"'[1]Протокол ШЭ ВОШ по предмету ЛИТ'!E68","v":"Руслановна"},"ж",{"$f":"'[1]Протокол ШЭ ВОШ по предмету ЛИТ'!H68","v":"нет"},{"$f":"'[1]Протокол ШЭ ВОШ по предмету ЛИТ'!I68","v":7},{"$f":"'[1]Протокол ШЭ ВОШ по предмету ЛИТ'!J68","v":7},{"$f":"'[1]Протокол ШЭ ВОШ по предмету ЛИТ'!K68","v":2},{"$f":"'[1]Протокол ШЭ ВОШ по предмету ЛИТ'!L68","v":8},{"$f":"'[1]Протокол ШЭ ВОШ по предмету ЛИТ'!M68","v":"участник"},null,{"$f":"'[1]Протокол ШЭ ВОШ по предмету ЛИТ'!O68","v":"Семенова Марина Валерьевна"},{"$f":"'[1]Протокол ШЭ ВОШ по предмету ЛИТ'!P68","v":"Муниципальное бюджетное общеобразовательное учреждение \"Многопрофильный лицей №37\" Нижнекамского муниципального района Республики Татарстан"}]
[{"$f":"'[1]Протокол ШЭ ВОШ по предмету ЛИТ'!A69","v":68},{"$f":"'[1]Протокол ШЭ ВОШ по предмету ЛИТ'!C69","v":"Гришин"},{"$f":"'[1]Протокол ШЭ ВОШ по предмету ЛИТ'!D69","v":"Егор"},{"$f":"'[1]Протокол ШЭ ВОШ по предмету ЛИТ'!E69","v":"Максимович"},"м",{"$f":"'[1]Протокол ШЭ ВОШ по предмету ЛИТ'!H69","v":"нет"},{"$f":"'[1]Протокол ШЭ ВОШ по предмету ЛИТ'!I69","v":7},{"$f":"'[1]Протокол ШЭ ВОШ по предмету ЛИТ'!J69","v":7},{"$f":"'[1]Протокол ШЭ ВОШ по предмету ЛИТ'!K69","v":1},{"$f":"'[1]Протокол ШЭ ВОШ по предмету ЛИТ'!L69","v":8},{"$f":"'[1]Протокол ШЭ ВОШ по предмету ЛИТ'!M69","v":"участник"},null,{"$f":"'[1]Протокол ШЭ ВОШ по предмету ЛИТ'!O69","v":"Семенова Марина Валерьевна"},{"$f":"'[1]Протокол ШЭ ВОШ по предмету ЛИТ'!P69","v":"Муниципальное бюджетное общеобразовательное учреждение \"Многопрофильный лицей №37\" Нижнекамского муниципального района Республики Татарстан"}]
[{"$f":"'[1]Протокол ШЭ ВОШ по предмету ЛИТ'!A70","v":69},{"$f":"'[1]Протокол ШЭ ВОШ по предмету ЛИТ'!C70","v":"Макаров"},{"$f":"'[1]Протокол ШЭ ВОШ по предмету ЛИТ'!D70","v":"Георгий"},{"$f":"'[1]Протокол ШЭ ВОШ по предмету ЛИТ'!E70","v":"Дмитриевич"},"м",{"$f":"'[1]Протокол ШЭ ВОШ по предмету ЛИТ'!H70","v":"нет"},{"$f":"'[1]Протокол ШЭ ВОШ по предмету ЛИТ'!I70","v":7},{"$f":"'[1]Протокол ШЭ ВОШ по предмету ЛИТ'!J70","v":7},{"$f":"'[1]Протокол ШЭ ВОШ по предмету ЛИТ'!K70","v":1},{"$f":"'[1]Протокол ШЭ ВОШ по предмету ЛИТ'!L70","v":8},{"$f":"'[1]Протокол ШЭ ВОШ по предмету ЛИТ'!M70","v":"участник"},null,{"$f":"'[1]Протокол ШЭ ВОШ по предмету ЛИТ'!O70","v":"Семенова Марина Валерьевна"},{"$f":"'[1]Протокол ШЭ ВОШ по предмету ЛИТ'!P70","v":"Муниципальное бюджетное общеобразовательное учреждение \"Многопрофильный лицей №37\" Нижнекамского муниципального района Республики Татарстан"}]
[{"$f":"'[1]Протокол ШЭ ВОШ по предмету ЛИТ'!A71","v":70},{"$f":"'[1]Протокол ШЭ ВОШ по предмету ЛИТ'!C71","v":"Байрамов"},{"$f":"'[1]Протокол ШЭ ВОШ по предмету ЛИТ'!D71","v":"Реналь"},{"$f":"'[1]Протокол ШЭ ВОШ по предмету ЛИТ'!E71","v":"Рустемович"},"м",{"$f":"'[1]Протокол ШЭ ВОШ по предмету ЛИТ'!H71","v":"нет"},{"$f":"'[1]Протокол ШЭ ВОШ по предмету ЛИТ'!I71","v":7},{"$f":"'[1]Протокол ШЭ ВОШ по предмету ЛИТ'!J71","v":7},{"$f":"'[1]Протокол ШЭ ВОШ по предмету ЛИТ'!K71","v":1},{"$f":"'[1]Протокол ШЭ ВОШ по предмету ЛИТ'!L71","v":8},{"$f":"'[1]Протокол ШЭ ВОШ по предмету ЛИТ'!M71","v":"участник"},null,{"$f":"'[1]Протокол ШЭ ВОШ по предмету ЛИТ'!O71","v":"Нуждина Олеся Евгеньевна"},{"$f":"'[1]Протокол ШЭ ВОШ по предмету ЛИТ'!P71","v":"Муниципальное бюджетное общеобразовательное учреждение \"Многопрофильный лицей №37\" Нижнекамского муниципального района Республики Татарстан"}]
[{"$f":"'[1]Протокол ШЭ ВОШ по предмету ЛИТ'!A72","v":71},{"$f":"'[1]Протокол ШЭ ВОШ по предмету ЛИТ'!C72","v":"Каримов"},{"$f":"'[1]Протокол ШЭ ВОШ по предмету ЛИТ'!D72","v":"Ранис"},{"$f":"'[1]Протокол ШЭ ВОШ по предмету ЛИТ'!E72","v":"Равилевич"},"м",{"$f":"'[1]Протокол ШЭ ВОШ по предмету ЛИТ'!H72","v":"нет"},{"$f":"'[1]Протокол ШЭ ВОШ по предмету ЛИТ'!I72","v":7},{"$f":"'[1]Протокол ШЭ ВОШ по предмету ЛИТ'!J72","v":7},{"$f":"'[1]Протокол ШЭ ВОШ по предмету ЛИТ'!K72","v":1},{"$f":"'[1]Протокол ШЭ ВОШ по предмету ЛИТ'!L72","v":8},{"$f":"'[1]Протокол ШЭ ВОШ по предмету ЛИТ'!M72","v":"участник"},null,{"$f":"'[1]Протокол ШЭ ВОШ по предмету ЛИТ'!O72","v":"Нуждина Олеся Евгеньевна"},{"$f":"'[1]Протокол ШЭ ВОШ по предмету ЛИТ'!P72","v":"Муниципальное бюджетное общеобразовательное учреждение \"Многопрофильный лицей №37\" Нижнекамского муниципального района Республики Татарстан"}]
[{"$f":"'[1]Протокол ШЭ ВОШ по предмету ЛИТ'!A73","v":72},{"$f":"'[1]Протокол ШЭ ВОШ по предмету ЛИТ'!C73","v":"Гилазиев"},{"$f":"'[1]Протокол ШЭ ВОШ по предмету ЛИТ'!D73","v":"Зуфар"},{"$f":"'[1]Протокол ШЭ ВОШ по предмету ЛИТ'!E73","v":"Мансурович"},"м",{"$f":"'[1]Протокол ШЭ ВОШ по предмету ЛИТ'!H73","v":"нет"},{"$f":"'[1]Протокол ШЭ ВОШ по предмету ЛИТ'!I73","v":7},{"$f":"'[1]Протокол ШЭ ВОШ по предмету ЛИТ'!J73","v":7},{"$f":"'[1]Протокол ШЭ ВОШ по предмету ЛИТ'!K73","v":1},{"$f":"'[1]Протокол ШЭ ВОШ по предмету ЛИТ'!L73","v":8},{"$f":"'[1]Протокол ШЭ ВОШ по предмету ЛИТ'!M73","v":"участник"},null,{"$f":"'[1]Протокол ШЭ ВОШ по предмету ЛИТ'!O73","v":"Нуждина Олеся Евгеньевна"},{"$f":"'[1]Протокол ШЭ ВОШ по предмету ЛИТ'!P73","v":"Муниципальное бюджетное общеобразовательное учреждение \"Многопрофильный лицей №37\" Нижнекамского муниципального района Республики Татарстан"}]
[{"$f":"'[1]Протокол ШЭ ВОШ по предмету ЛИТ'!A74","v":73},{"$f":"'[1]Протокол ШЭ ВОШ по предмету ЛИТ'!C74","v":"Якупов"},{"$f":"'[1]Протокол ШЭ ВОШ по предмету ЛИТ'!D74","v":"Тимур"},{"$f":"'[1]Протокол ШЭ ВОШ по предмету ЛИТ'!E74","v":"Артемович"},"м",{"$f":"'[1]Протокол ШЭ ВОШ по предмету ЛИТ'!H74","v":"нет"},{"$f":"'[1]Протокол ШЭ ВОШ по предмету ЛИТ'!I74","v":7},{"$f":"'[1]Протокол ШЭ ВОШ по предмету ЛИТ'!J74","v":7},{"$f":"'[1]Протокол ШЭ ВОШ по предмету ЛИТ'!K74","v":1},{"$f":"'[1]Протокол ШЭ ВОШ по предмету ЛИТ'!L74","v":8},{"$f":"'[1]Протокол ШЭ ВОШ по предмету ЛИТ'!M74","v":"участник"},null,{"$f":"'[1]Протокол ШЭ ВОШ по предмету ЛИТ'!O74","v":"Нуждина Олеся Евгеньевна"},{"$f":"'[1]Протокол ШЭ ВОШ по предмету ЛИТ'!P74","v":"Муниципальное бюджетное общеобразовательное учреждение \"Многопрофильный лицей №37\" Нижнекамского муниципального района Республики Татарстан"}]
[{"$f":"'[1]Протокол ШЭ ВОШ по предмету ЛИТ'!A75","v":74},{"$f":"'[1]Протокол ШЭ ВОШ по предмету ЛИТ'!C75","v":"Хамадвалиева"},{"$f":"'[1]Протокол ШЭ ВОШ по предмету ЛИТ'!D75","v":"Ландыш"},{"$f":"'[1]Протокол ШЭ ВОШ по предмету ЛИТ'!E75","v":"Зиннуровна"},"ж",{"$f":"'[1]Протокол ШЭ ВОШ по предмету ЛИТ'!H75","v":"нет"},{"$f":"'[1]Протокол ШЭ ВОШ по предмету ЛИТ'!I75","v":7},{"$f":"'[1]Протокол ШЭ ВОШ по предмету ЛИТ'!J75","v":7},{"$f":"'[1]Протокол ШЭ ВОШ по предмету ЛИТ'!K75","v":1},{"$f":"'[1]Протокол ШЭ ВОШ по предмету ЛИТ'!L75","v":8},{"$f":"'[1]Протокол ШЭ ВОШ по предмету ЛИТ'!M75","v":"участник"},null,{"$f":"'[1]Протокол ШЭ ВОШ по предмету ЛИТ'!O75","v":"Нуждина Олеся Евгеньевна"},{"$f":"'[1]Протокол ШЭ ВОШ по предмету ЛИТ'!P75","v":"Муниципальное бюджетное общеобразовательное учреждение \"Многопрофильный лицей №37\" Нижнекамского муниципального района Республики Татарстан"}]
[{"$f":"'[1]Протокол ШЭ ВОШ по предмету ЛИТ'!A76","v":75},{"$f":"'[1]Протокол ШЭ ВОШ по предмету ЛИТ'!C76","v":"Сафин"},{"$f":"'[1]Протокол ШЭ ВОШ по предмету ЛИТ'!D76","v":"Амир"},{"$f":"'[1]Протокол ШЭ ВОШ по предмету ЛИТ'!E76","v":"Ренатович"},"м",{"$f":"'[1]Протокол ШЭ ВОШ по предмету ЛИТ'!H76","v":"нет"},{"$f":"'[1]Протокол ШЭ ВОШ по предмету ЛИТ'!I76","v":7},{"$f":"'[1]Протокол ШЭ ВОШ по предмету ЛИТ'!J76","v":7},{"$f":"'[1]Протокол ШЭ ВОШ по предмету ЛИТ'!K76","v":0},{"$f":"'[1]Протокол ШЭ ВОШ по предмету ЛИТ'!L76","v":8},{"$f":"'[1]Протокол ШЭ ВОШ по предмету ЛИТ'!M76","v":"участник"},null,{"$f":"'[1]Протокол ШЭ ВОШ по предмету ЛИТ'!O76","v":"Нуждина Олеся Евгеньевна"},{"$f":"'[1]Протокол ШЭ ВОШ по предмету ЛИТ'!P76","v":"Муниципальное бюджетное общеобразовательное учреждение \"Многопрофильный лицей №37\" Нижнекамского муниципального района Республики Татарстан"}]
[{"$f":"'[1]Протокол ШЭ ВОШ по предмету ЛИТ'!A77","v":76},{"$f":"'[1]Протокол ШЭ ВОШ по предмету ЛИТ'!C77","v":"Гайфутдинов"},{"$f":"'[1]Протокол ШЭ ВОШ по предмету ЛИТ'!D77","v":"Ислам"},{"$f":"'[1]Протокол ШЭ ВОШ по предмету ЛИТ'!E77","v":"Айнурович"},"м",{"$f":"'[1]Протокол ШЭ ВОШ по предмету ЛИТ'!H77","v":"нет"},{"$f":"'[1]Протокол ШЭ ВОШ по предмету ЛИТ'!I77","v":7},{"$f":"'[1]Протокол ШЭ ВОШ по предмету ЛИТ'!J77","v":7},{"$f":"'[1]Протокол ШЭ ВОШ по предмету ЛИТ'!K77","v":0},{"$f":"'[1]Протокол ШЭ ВОШ по предмету ЛИТ'!L77","v":8},{"$f":"'[1]Протокол ШЭ ВОШ по предмету ЛИТ'!M77","v":"участник"},null,{"$f":"'[1]Протокол ШЭ ВОШ по предмету ЛИТ'!O77","v":"Нуждина Олеся Евгеньевна"},{"$f":"'[1]Протокол ШЭ ВОШ по предмету ЛИТ'!P77","v":"Муниципальное бюджетное общеобразовательное учреждение \"Многопрофильный лицей №37\" Нижнекамского муниципального района Республики Татарстан"}]
[{"$f":"'[1]Протокол ШЭ ВОШ по предмету ЛИТ'!A78","v":77},{"$f":"'[1]Протокол ШЭ ВОШ по предмету ЛИТ'!C78","v":"Гайдуллин"},{"$f":"'[1]Протокол ШЭ ВОШ по предмету ЛИТ'!D78","v":"Ярослав"},{"$f":"'[1]Протокол ШЭ ВОШ по предмету ЛИТ'!E78","v":"Владимирович"},"м",{"$f":"'[1]Протокол ШЭ ВОШ по предмету ЛИТ'!H78","v":"нет"},{"$f":"'[1]Протокол ШЭ ВОШ по предмету ЛИТ'!I78","v":8},{"$f":"'[1]Протокол ШЭ ВОШ по предмету ЛИТ'!J78","v":8},{"$f":"'[1]Протокол ШЭ ВОШ по предмету ЛИТ'!K78","v":7},{"$f":"'[1]Протокол ШЭ ВОШ по предмету ЛИТ'!L78","v":8},{"$f":"'[1]Протокол ШЭ ВОШ по предмету ЛИТ'!M78","v":"победитель"},null,{"$f":"'[1]Протокол ШЭ ВОШ по предмету ЛИТ'!O78","v":"Семенова Марина Валерьевна"},{"$f":"'[1]Протокол ШЭ ВОШ по предмету ЛИТ'!P78","v":"Муниципальное бюджетное общеобразовательное учреждение \"Многопрофильный лицей №37\" Нижнекамского муниципального района Республики Татарстан"}]
[{"$f":"'[1]Протокол ШЭ ВОШ по предмету ЛИТ'!A79","v":78},{"$f":"'[1]Протокол ШЭ ВОШ по предмету ЛИТ'!C79","v":"Орехов"},{"$f":"'[1]Протокол ШЭ ВОШ по предмету ЛИТ'!D79","v":"Станислав"},{"$f":"'[1]Протокол ШЭ ВОШ по предмету ЛИТ'!E79","v":"Владимирович"},"м",{"$f":"'[1]Протокол ШЭ ВОШ по предмету ЛИТ'!H79","v":"нет"},{"$f":"'[1]Протокол ШЭ ВОШ по предмету ЛИТ'!I79","v":8},{"$f":"'[1]Протокол ШЭ ВОШ по предмету ЛИТ'!J79","v":8},{"$f":"'[1]Протокол ШЭ ВОШ по предмету ЛИТ'!K79","v":6},{"$f":"'[1]Протокол ШЭ ВОШ по предмету ЛИТ'!L79","v":8},{"$f":"'[1]Протокол ШЭ ВОШ по предмету ЛИТ'!M79","v":"призер"},null,{"$f":"'[1]Протокол ШЭ ВОШ по предмету ЛИТ'!O79","v":"Семенова Марина Валерьевна"},{"$f":"'[1]Протокол ШЭ ВОШ по предмету ЛИТ'!P79","v":"Муниципальное бюджетное общеобразовательное учреждение \"Многопрофильный лицей №37\" Нижнекамского муниципального района Республики Татарстан"}]
[{"$f":"'[1]Протокол ШЭ ВОШ по предмету ЛИТ'!A80","v":79},{"$f":"'[1]Протокол ШЭ ВОШ по предмету ЛИТ'!C80","v":"Ульданов"},{"$f":"'[1]Протокол ШЭ ВОШ по предмету ЛИТ'!D80","v":"Рафиль"},{"$f":"'[1]Протокол ШЭ ВОШ по предмету ЛИТ'!E80","v":"Ниязович"},"м",{"$f":"'[1]Протокол ШЭ ВОШ по предмету ЛИТ'!H80","v":"нет"},{"$f":"'[1]Протокол ШЭ ВОШ по предмету ЛИТ'!I80","v":8},{"$f":"'[1]Протокол ШЭ ВОШ по предмету ЛИТ'!J80","v":8},{"$f":"'[1]Протокол ШЭ ВОШ по предмету ЛИТ'!K80","v":5},{"$f":"'[1]Протокол ШЭ ВОШ по предмету ЛИТ'!L80","v":8},{"$f":"'[1]Протокол ШЭ ВОШ по предмету ЛИТ'!M80","v":"участник"},null,{"$f":"'[1]Протокол ШЭ ВОШ по предмету ЛИТ'!O80","v":"Семенова Марина Валерьевна"},{"$f":"'[1]Протокол ШЭ ВОШ по предмету ЛИТ'!P80","v":"Муниципальное бюджетное общеобразовательное учреждение \"Многопрофильный лицей №37\" Нижнекамского муниципального района Республики Татарстан"}]
[{"$f":"'[1]Протокол ШЭ ВОШ по предмету ЛИТ'!A81","v":80},{"$f":"'[1]Протокол ШЭ ВОШ по предмету ЛИТ'!C81","v":"Абдуллин"},{"$f":"'[1]Протокол ШЭ ВОШ по предмету ЛИТ'!D81","v":"Эмир"},{"$f":"'[1]Протокол ШЭ ВОШ по предмету ЛИТ'!E81","v":"Эльмарович"},"м",{"$f":"'[1]Протокол ШЭ ВОШ по предмету ЛИТ'!H81","v":"нет"},{"$f":"'[1]Протокол ШЭ ВОШ по предмету ЛИТ'!I81","v":8},{"$f":"'[1]Протокол ШЭ ВОШ по предмету ЛИТ'!J81","v":8},{"$f":"'[1]Протокол ШЭ ВОШ по предмету ЛИТ'!K81","v":3},{"$f":"'[1]Протокол ШЭ ВОШ по предмету ЛИТ'!L81","v":8},{"$f":"'[1]Протокол ШЭ ВОШ по предмету ЛИТ'!M81","v":"участник"},null,{"$f":"'[1]Протокол ШЭ ВОШ по предмету ЛИТ'!O81","v":"Семенова Марина Валерьевна"},{"$f":"'[1]Протокол ШЭ ВОШ по предмету ЛИТ'!P81","v":"Муниципальное бюджетное общеобразовательное учреждение \"Многопрофильный лицей №37\" Нижнекамского муниципального района Республики Татарстан"}]
[{"$f":"'[1]Протокол ШЭ ВОШ по предмету ЛИТ'!A82","v":81},{"$f":"'[1]Протокол ШЭ ВОШ по предмету ЛИТ'!C82","v":"Зяббаров"},{"$f":"'[1]Протокол ШЭ ВОШ по предмету ЛИТ'!D82","v":"Дамир"},{"$f":"'[1]Протокол ШЭ ВОШ по предмету ЛИТ'!E82","v":"Айратович"},"м",{"$f":"'[1]Протокол ШЭ ВОШ по предмету ЛИТ'!H82","v":"нет"},{"$f":"'[1]Протокол ШЭ ВОШ по предмету ЛИТ'!I82","v":8},{"$f":"'[1]Протокол ШЭ ВОШ по предмету ЛИТ'!J82","v":8},{"$f":"'[1]Протокол ШЭ ВОШ по предмету ЛИТ'!K82","v":3},{"$f":"'[1]Протокол ШЭ ВОШ по предмету ЛИТ'!L82","v":8},{"$f":"'[1]Протокол ШЭ ВОШ по предмету ЛИТ'!M82","v":"участник"},null,{"$f":"'[1]Протокол ШЭ ВОШ по предмету ЛИТ'!O82","v":"Семенова Марина Валерьевна"},{"$f":"'[1]Протокол ШЭ ВОШ по предмету ЛИТ'!P82","v":"Муниципальное бюджетное общеобразовательное учреждение \"Многопрофильный лицей №37\" Нижнекамского муниципального района Республики Татарстан"}]
[{"$f":"'[1]Протокол ШЭ ВОШ по предмету ЛИТ'!A83","v":82},{"$f":"'[1]Протокол ШЭ ВОШ по предмету ЛИТ'!C83","v":"Шаяхметова"},{"$f":"'[1]Протокол ШЭ ВОШ по предмету ЛИТ'!D83","v":"Дарина"},{"$f":"'[1]Протокол ШЭ ВОШ по предмету ЛИТ'!E83","v":"Ильдаровна"},"ж",{"$f":"'[1]Протокол ШЭ ВОШ по предмету ЛИТ'!H83","v":"нет"},{"$f":"'[1]Протокол ШЭ ВОШ по предмету ЛИТ'!I83","v":8},{"$f":"'[1]Протокол ШЭ ВОШ по предмету ЛИТ'!J83","v":8},{"$f":"'[1]Протокол ШЭ ВОШ по предмету ЛИТ'!K83","v":3},{"$f":"'[1]Протокол ШЭ ВОШ по предмету ЛИТ'!L83","v":8},{"$f":"'[1]Протокол ШЭ ВОШ по предмету ЛИТ'!M83","v":"участник"},null,{"$f":"'[1]Протокол ШЭ ВОШ по предмету ЛИТ'!O83","v":"Семенова Марина Валерьевна"},{"$f":"'[1]Протокол ШЭ ВОШ по предмету ЛИТ'!P83","v":"Муниципальное бюджетное общеобразовательное учреждение \"Многопрофильный лицей №37\" Нижнекамского муниципального района Республики Татарстан"}]
[{"$f":"'[1]Протокол ШЭ ВОШ по предмету ЛИТ'!A84","v":83},{"$f":"'[1]Протокол ШЭ ВОШ по предмету ЛИТ'!C84","v":"Ишкальдина"},{"$f":"'[1]Протокол ШЭ ВОШ по предмету ЛИТ'!D84","v":"Камила"},{"$f":"'[1]Протокол ШЭ ВОШ по предмету ЛИТ'!E84","v":"Вячеславовна"},"ж",{"$f":"'[1]Протокол ШЭ ВОШ по предмету ЛИТ'!H84","v":"нет"},{"$f":"'[1]Протокол ШЭ ВОШ по предмету ЛИТ'!I84","v":8},{"$f":"'[1]Протокол ШЭ ВОШ по предмету ЛИТ'!J84","v":8},{"$f":"'[1]Протокол ШЭ ВОШ по предмету ЛИТ'!K84","v":3},{"$f":"'[1]Протокол ШЭ ВОШ по предмету ЛИТ'!L84","v":8},{"$f":"'[1]Протокол ШЭ ВОШ по предмету ЛИТ'!M84","v":"участник"},null,{"$f":"'[1]Протокол ШЭ ВОШ по предмету ЛИТ'!O84","v":"Семенова Марина Валерьевна"},{"$f":"'[1]Протокол ШЭ ВОШ по предмету ЛИТ'!P84","v":"Муниципальное бюджетное общеобразовательное учреждение \"Многопрофильный лицей №37\" Нижнекамского муниципального района Республики Татарстан"}]
[{"$f":"'[1]Протокол ШЭ ВОШ по предмету ЛИТ'!A85","v":84},{"$f":"'[1]Протокол ШЭ ВОШ по предмету ЛИТ'!C85","v":"Галкина"},{"$f":"'[1]Протокол ШЭ ВОШ по предмету ЛИТ'!D85","v":"Дарья"},{"$f":"'[1]Протокол ШЭ ВОШ по предмету ЛИТ'!E85","v":"Александровна"},"ж",{"$f":"'[1]Протокол ШЭ ВОШ по предмету ЛИТ'!H85","v":"нет"},{"$f":"'[1]Протокол ШЭ ВОШ по предмету ЛИТ'!I85","v":8},{"$f":"'[1]Протокол ШЭ ВОШ по предмету ЛИТ'!J85","v":8},{"$f":"'[1]Протокол ШЭ ВОШ по предмету ЛИТ'!K85","v":3},{"$f":"'[1]Протокол ШЭ ВОШ по предмету ЛИТ'!L85","v":8},{"$f":"'[1]Протокол ШЭ ВОШ по предмету ЛИТ'!M85","v":"участник"},null,{"$f":"'[1]Протокол ШЭ ВОШ по предмету ЛИТ'!O85","v":"Семенова Марина Валерьевна"},{"$f":"'[1]Протокол ШЭ ВОШ по предмету ЛИТ'!P85","v":"Муниципальное бюджетное общеобразовательное учреждение \"Многопрофильный лицей №37\" Нижнекамского муниципального района Республики Татарстан"}]
[{"$f":"'[1]Протокол ШЭ ВОШ по предмету ЛИТ'!A86","v":85},{"$f":"'[1]Протокол ШЭ ВОШ по предмету ЛИТ'!C86","v":"Хоснуллин"},{"$f":"'[1]Протокол ШЭ ВОШ по предмету ЛИТ'!D86","v":"Камиль"},{"$f":"'[1]Протокол ШЭ ВОШ по предмету ЛИТ'!E86","v":"Ильшатович"},"м",{"$f":"'[1]Протокол ШЭ ВОШ по предмету ЛИТ'!H86","v":"нет"},{"$f":"'[1]Протокол ШЭ ВОШ по предмету ЛИТ'!I86","v":8},{"$f":"'[1]Протокол ШЭ ВОШ по предмету ЛИТ'!J86","v":8},{"$f":"'[1]Протокол ШЭ ВОШ по предмету ЛИТ'!K86","v":2},{"$f":"'[1]Протокол ШЭ ВОШ по предмету ЛИТ'!L86","v":8},{"$f":"'[1]Протокол ШЭ ВОШ по предмету ЛИТ'!M86","v":"участник"},null,{"$f":"'[1]Протокол ШЭ ВОШ по предмету ЛИТ'!O86","v":"Семенова Марина Валерьевна"},{"$f":"'[1]Протокол ШЭ ВОШ по предмету ЛИТ'!P86","v":"Муниципальное бюджетное общеобразовательное учреждение \"Многопрофильный лицей №37\" Нижнекамского муниципального района Республики Татарстан"}]
[{"$f":"'[1]Протокол ШЭ ВОШ по предмету ЛИТ'!A87","v":86},{"$f":"'[1]Протокол ШЭ ВОШ по предмету ЛИТ'!C87","v":"Габдрахманов"},{"$f":"'[1]Протокол ШЭ ВОШ по предмету ЛИТ'!D87","v":"Наиль"},{"$f":"'[1]Протокол ШЭ ВОШ по предмету ЛИТ'!E87","v":"Шамилевич"},"м",{"$f":"'[1]Протокол ШЭ ВОШ по предмету ЛИТ'!H87","v":"нет"},{"$f":"'[1]Протокол ШЭ ВОШ по предмету ЛИТ'!I87","v":8},{"$f":"'[1]Протокол ШЭ ВОШ по предмету ЛИТ'!J87","v":8},{"$f":"'[1]Протокол ШЭ ВОШ по предмету ЛИТ'!K87","v":2},{"$f":"'[1]Протокол ШЭ ВОШ по предмету ЛИТ'!L87","v":8},{"$f":"'[1]Протокол ШЭ ВОШ по предмету ЛИТ'!M87","v":"участник"},null,{"$f":"'[1]Протокол ШЭ ВОШ по предмету ЛИТ'!O87","v":"Семенова Марина Валерьевна"},{"$f":"'[1]Протокол ШЭ ВОШ по предмету ЛИТ'!P87","v":"Муниципальное бюджетное общеобразовательное учреждение \"Многопрофильный лицей №37\" Нижнекамского муниципального района Республики Татарстан"}]
[{"$f":"'[1]Протокол ШЭ ВОШ по предмету ЛИТ'!A88","v":87},{"$f":"'[1]Протокол ШЭ ВОШ по предмету ЛИТ'!C88","v":"Донской"},{"$f":"'[1]Протокол ШЭ ВОШ по предмету ЛИТ'!D88","v":"Дмитрий"},{"$f":"'[1]Протокол ШЭ ВОШ по предмету ЛИТ'!E88","v":"Максимович"},"м",{"$f":"'[1]Протокол ШЭ ВОШ по предмету ЛИТ'!H88","v":"нет"},{"$f":"'[1]Протокол ШЭ ВОШ по предмету ЛИТ'!I88","v":8},{"$f":"'[1]Протокол ШЭ ВОШ по предмету ЛИТ'!J88","v":8},{"$f":"'[1]Протокол ШЭ ВОШ по предмету ЛИТ'!K88","v":1},{"$f":"'[1]Протокол ШЭ ВОШ по предмету ЛИТ'!L88","v":8},{"$f":"'[1]Протокол ШЭ ВОШ по предмету ЛИТ'!M88","v":"участник"},null,{"$f":"'[1]Протокол ШЭ ВОШ по предмету ЛИТ'!O88","v":"Тимонина Ирина Николаевна"},{"$f":"'[1]Протокол ШЭ ВОШ по предмету ЛИТ'!P88","v":"Муниципальное бюджетное общеобразовательное учреждение \"Многопрофильный лицей №37\" Нижнекамского муниципального района Республики Татарстан"}]
[{"$f":"'[1]Протокол ШЭ ВОШ по предмету ЛИТ'!A89","v":88},{"$f":"'[1]Протокол ШЭ ВОШ по предмету ЛИТ'!C89","v":"Ибрагимова"},{"$f":"'[1]Протокол ШЭ ВОШ по предмету ЛИТ'!D89","v":"Амалия"},{"$f":"'[1]Протокол ШЭ ВОШ по предмету ЛИТ'!E89","v":"Ильгамовна"},"ж",{"$f":"'[1]Протокол ШЭ ВОШ по предмету ЛИТ'!H89","v":"нет"},{"$f":"'[1]Протокол ШЭ ВОШ по предмету ЛИТ'!I89","v":8},{"$f":"'[1]Протокол ШЭ ВОШ по предмету ЛИТ'!J89","v":8},{"$f":"'[1]Протокол ШЭ ВОШ по предмету ЛИТ'!K89","v":1},{"$f":"'[1]Протокол ШЭ ВОШ по предмету ЛИТ'!L89","v":8},{"$f":"'[1]Протокол ШЭ ВОШ по предмету ЛИТ'!M89","v":"участник"},null,{"$f":"'[1]Протокол ШЭ ВОШ по предмету ЛИТ'!O89","v":"Тимонина Ирина Николаевна"},{"$f":"'[1]Протокол ШЭ ВОШ по предмету ЛИТ'!P89","v":"Муниципальное бюджетное общеобразовательное учреждение \"Многопрофильный лицей №37\" Нижнекамского муниципального района Республики Татарстан"}]
[{"$f":"'[1]Протокол ШЭ ВОШ по предмету ЛИТ'!A90","v":89},{"$f":"'[1]Протокол ШЭ ВОШ по предмету ЛИТ'!C90","v":"Ибрагимов"},{"$f":"'[1]Протокол ШЭ ВОШ по предмету ЛИТ'!D90","v":"Данис"},{"$f":"'[1]Протокол ШЭ ВОШ по предмету ЛИТ'!E90","v":"Азатович"},"м",{"$f":"'[1]Протокол ШЭ ВОШ по предмету ЛИТ'!H90","v":"нет"},{"$f":"'[1]Протокол ШЭ ВОШ по предмету ЛИТ'!I90","v":8},{"$f":"'[1]Протокол ШЭ ВОШ по предмету ЛИТ'!J90","v":8},{"$f":"'[1]Протокол ШЭ ВОШ по предмету ЛИТ'!K90","v":1},{"$f":"'[1]Протокол ШЭ ВОШ по предмету ЛИТ'!L90","v":8},{"$f":"'[1]Протокол ШЭ ВОШ по предмету ЛИТ'!M90","v":"участник"},null,{"$f":"'[1]Протокол ШЭ ВОШ по предмету ЛИТ'!O90","v":"Семенова Марина Валерьевна"},{"$f":"'[1]Протокол ШЭ ВОШ по предмету ЛИТ'!P90","v":"Муниципальное бюджетное общеобразовательное учреждение \"Многопрофильный лицей №37\" Нижнекамского муниципального района Республики Татарстан"}]
[{"$f":"'[1]Протокол ШЭ ВОШ по предмету ЛИТ'!A91","v":90},{"$f":"'[1]Протокол ШЭ ВОШ по предмету ЛИТ'!C91","v":"Трошина"},{"$f":"'[1]Протокол ШЭ ВОШ по предмету ЛИТ'!D91","v":"Полина"},{"$f":"'[1]Протокол ШЭ ВОШ по предмету ЛИТ'!E91","v":"Дмитриевна"},"ж",{"$f":"'[1]Протокол ШЭ ВОШ по предмету ЛИТ'!H91","v":"нет"},{"$f":"'[1]Протокол ШЭ ВОШ по предмету ЛИТ'!I91","v":8},{"$f":"'[1]Протокол ШЭ ВОШ по предмету ЛИТ'!J91","v":8},{"$f":"'[1]Протокол ШЭ ВОШ по предмету ЛИТ'!K91","v":0},{"$f":"'[1]Протокол ШЭ ВОШ по предмету ЛИТ'!L91","v":8},{"$f":"'[1]Протокол ШЭ ВОШ по предмету ЛИТ'!M91","v":"участник"},null,{"$f":"'[1]Протокол ШЭ ВОШ по предмету ЛИТ'!O91","v":"Тимонина Ирина Николаевна"},{"$f":"'[1]Протокол ШЭ ВОШ по предмету ЛИТ'!P91","v":"Муниципальное бюджетное общеобразовательное учреждение \"Многопрофильный лицей №37\" Нижнекамского муниципального района Республики Татарстан"}]
[{"$f":"'[1]Протокол ШЭ ВОШ по предмету ЛИТ'!A92","v":91},{"$f":"'[1]Протокол ШЭ ВОШ по предмету ЛИТ'!C92","v":"Никифорова"},{"$f":"'[1]Протокол ШЭ ВОШ по предмету ЛИТ'!D92","v":"Ангелина"},{"$f":"'[1]Протокол ШЭ ВОШ по предмету ЛИТ'!E92","v":"Артемовна"},"ж",{"$f":"'[1]Протокол ШЭ ВОШ по предмету ЛИТ'!H92","v":"нет"},{"$f":"'[1]Протокол ШЭ ВОШ по предмету ЛИТ'!I92","v":9},{"$f":"'[1]Протокол ШЭ ВОШ по предмету ЛИТ'!J92","v":9},{"$f":"'[1]Протокол ШЭ ВОШ по предмету ЛИТ'!K92","v":5},{"$f":"'[1]Протокол ШЭ ВОШ по предмету ЛИТ'!L92","v":8},{"$f":"'[1]Протокол ШЭ ВОШ по предмету ЛИТ'!M92","v":"победитель"},null,{"$f":"'[1]Протокол ШЭ ВОШ по предмету ЛИТ'!O92","v":"Семенова Марина Валерьевна"},{"$f":"'[1]Протокол ШЭ ВОШ по предмету ЛИТ'!P92","v":"Муниципальное бюджетное общеобразовательное учреждение \"Многопрофильный лицей №37\" Нижнекамского муниципального района Республики Татарстан"}]
[{"$f":"'[1]Протокол ШЭ ВОШ по предмету ЛИТ'!A93","v":92},{"$f":"'[1]Протокол ШЭ ВОШ по предмету ЛИТ'!C93","v":"Кямякова"},{"$f":"'[1]Протокол ШЭ ВОШ по предмету ЛИТ'!D93","v":"Камилла"},{"$f":"'[1]Протокол ШЭ ВОШ по предмету ЛИТ'!E93","v":"Вагизовна"},"ж",{"$f":"'[1]Протокол ШЭ ВОШ по предмету ЛИТ'!H93","v":"нет"},{"$f":"'[1]Протокол ШЭ ВОШ по предмету ЛИТ'!I93","v":9},{"$f":"'[1]Протокол ШЭ ВОШ по предмету ЛИТ'!J93","v":9},{"$f":"'[1]Протокол ШЭ ВОШ по предмету ЛИТ'!K93","v":1},{"$f":"'[1]Протокол ШЭ ВОШ по предмету ЛИТ'!L93","v":8},{"$f":"'[1]Протокол ШЭ ВОШ по предмету ЛИТ'!M93","v":"участник"},null,{"$f":"'[1]Протокол ШЭ ВОШ по предмету ЛИТ'!O93","v":"Семенова Марина Валерьевна"},{"$f":"'[1]Протокол ШЭ ВОШ по предмету ЛИТ'!P93","v":"Муниципальное бюджетное общеобразовательное учреждение \"Многопрофильный лицей №37\" Нижнекамского муниципального района Республики Татарстан"}]
[{"$f":"'[1]Протокол ШЭ ВОШ по предмету ЛИТ'!A94","v":93},{"$f":"'[1]Протокол ШЭ ВОШ по предмету ЛИТ'!C94","v":"Темиргазина"},{"$f":"'[1]Протокол ШЭ ВОШ по предмету ЛИТ'!D94","v":"Динара"},{"$f":"'[1]Протокол ШЭ ВОШ по предмету ЛИТ'!E94","v":"Данилевна"},"ж",{"$f":"'[1]Протокол ШЭ ВОШ по предмету ЛИТ'!H94","v":"нет"},{"$f":"'[1]Протокол ШЭ ВОШ по предмету ЛИТ'!I94","v":9},{"$f":"'[1]Протокол ШЭ ВОШ по предмету ЛИТ'!J94","v":9},{"$f":"'[1]Протокол ШЭ ВОШ по предмету ЛИТ'!K94","v":1},{"$f":"'[1]Протокол ШЭ ВОШ по предмету ЛИТ'!L94","v":8},{"$f":"'[1]Протокол ШЭ ВОШ по предмету ЛИТ'!M94","v":"участник"},null,{"$f":"'[1]Протокол ШЭ ВОШ по предмету ЛИТ'!O94","v":"Семенова Марина Валерьевна"},{"$f":"'[1]Протокол ШЭ ВОШ по предмету ЛИТ'!P94","v":"Муниципальное бюджетное общеобразовательное учреждение \"Многопрофильный лицей №37\" Нижнекамского муниципального района Республики Татарстан"}]
[{"$f":"'[1]Протокол ШЭ ВОШ по предмету ЛИТ'!A95","v":94},{"$f":"'[1]Протокол ШЭ ВОШ по предмету ЛИТ'!C95","v":"Шихранова"},{"$f":"'[1]Протокол ШЭ ВОШ по предмету ЛИТ'!D95","v":"Ульяна"},{"$f":"'[1]Протокол ШЭ ВОШ по предмету ЛИТ'!E95","v":"Алексеевна"},"ж",{"$f":"'[1]Протокол ШЭ ВОШ по предмету ЛИТ'!H95","v":"нет"},{"$f":"'[1]Протокол ШЭ ВОШ по предмету ЛИТ'!I95","v":9},{"$f":"'[1]Протокол ШЭ ВОШ по предмету ЛИТ'!J95","v":9},{"$f":"'[1]Протокол ШЭ ВОШ по предмету ЛИТ'!K95","v":1},{"$f":"'[1]Протокол ШЭ ВОШ по предмету ЛИТ'!L95","v":8},{"$f":"'[1]Протокол ШЭ ВОШ по предмету ЛИТ'!M95","v":"участник"},null,{"$f":"'[1]Протокол ШЭ ВОШ по предмету ЛИТ'!O95","v":"Семенова Марина Валерьевна"},{"$f":"'[1]Протокол ШЭ ВОШ по предмету ЛИТ'!P95","v":"Муниципальное бюджетное общеобразовательное учреждение \"Многопрофильный лицей №37\" Нижнекамского муниципального района Республики Татарстан"}]
[{"$f":"'[1]Протокол ШЭ ВОШ по предмету ЛИТ'!A96","v":95},{"$f":"'[1]Протокол ШЭ ВОШ по предмету ЛИТ'!C96","v":"Яфаров"},{"$f":"'[1]Протокол ШЭ ВОШ по предмету ЛИТ'!D96","v":"Данил"},{"$f":"'[1]Протокол ШЭ ВОШ по предмету ЛИТ'!E96","v":"Рафисович"},"м",{"$f":"'[1]Протокол ШЭ ВОШ по предмету ЛИТ'!H96","v":"нет"},{"$f":"'[1]Протокол ШЭ ВОШ по предмету ЛИТ'!I96","v":9},{"$f":"'[1]Протокол ШЭ ВОШ по предмету ЛИТ'!J96","v":9},{"$f":"'[1]Протокол ШЭ ВОШ по предмету ЛИТ'!K96","v":1},{"$f":"'[1]Протокол ШЭ ВОШ по предмету ЛИТ'!L96","v":8},{"$f":"'[1]Протокол ШЭ ВОШ по предмету ЛИТ'!M96","v":"участник"},null,{"$f":"'[1]Протокол ШЭ ВОШ по предмету ЛИТ'!O96","v":"Семенова Марина Валерьевна"},{"$f":"'[1]Протокол ШЭ ВОШ по предмету ЛИТ'!P96","v":"Муниципальное бюджетное общеобразовательное учреждение \"Многопрофильный лицей №37\" Нижнекамского муниципального района Республики Татарстан"}]
[{"$f":"'[1]Протокол ШЭ ВОШ по предмету ЛИТ'!A97","v":96},{"$f":"'[1]Протокол ШЭ ВОШ по предмету ЛИТ'!C97","v":"Васильева"},{"$f":"'[1]Протокол ШЭ ВОШ по предмету ЛИТ'!D97","v":"Диана"},{"$f":"'[1]Протокол ШЭ ВОШ по предмету ЛИТ'!E97","v":"Владимировна"},"ж",{"$f":"'[1]Протокол ШЭ ВОШ по предмету ЛИТ'!H97","v":"нет"},{"$f":"'[1]Протокол ШЭ ВОШ по предмету ЛИТ'!I97","v":9},{"$f":"'[1]Протокол ШЭ ВОШ по предмету ЛИТ'!J97","v":9},{"$f":"'[1]Протокол ШЭ ВОШ по предмету ЛИТ'!K97","v":1},{"$f":"'[1]Протокол ШЭ ВОШ по предмету ЛИТ'!L97","v":8},{"$f":"'[1]Протокол ШЭ ВОШ по предмету ЛИТ'!M97","v":"участник"},null,{"$f":"'[1]Протокол ШЭ ВОШ по предмету ЛИТ'!O97","v":"Семенова Марина Валерьевна"},{"$f":"'[1]Протокол ШЭ ВОШ по предмету ЛИТ'!P97","v":"Муниципальное бюджетное общеобразовательное учреждение \"Многопрофильный лицей №37\" Нижнекамского муниципального района Республики Татарстан"}]
[{"$f":"'[1]Протокол ШЭ ВОШ по предмету ЛИТ'!A98","v":97},{"$f":"'[1]Протокол ШЭ ВОШ по предмету ЛИТ'!C98","v":"Лаврентьева"},{"$f":"'[1]Протокол ШЭ ВОШ по предмету ЛИТ'!D98","v":"Екатерина"},{"$f":"'[1]Протокол ШЭ ВОШ по предмету ЛИТ'!E98","v":"Андреевна"},"ж",{"$f":"'[1]Протокол ШЭ ВОШ по предмету ЛИТ'!H98","v":"нет"},{"$f":"'[1]Протокол ШЭ ВОШ по предмету ЛИТ'!I98","v":9},{"$f":"'[1]Протокол ШЭ ВОШ по предмету ЛИТ'!J98","v":9},{"$f":"'[1]Протокол ШЭ ВОШ по предмету ЛИТ'!K98","v":1},{"$f":"'[1]Протокол ШЭ ВОШ по предмету ЛИТ'!L98","v":8},{"$f":"'[1]Протокол ШЭ ВОШ по предмету ЛИТ'!M98","v":"участник"},null,{"$f":"'[1]Протокол ШЭ ВОШ по предмету ЛИТ'!O98","v":"Семенова Марина Валерьевна"},{"$f":"'[1]Протокол ШЭ ВОШ по предмету ЛИТ'!P98","v":"Муниципальное бюджетное общеобразовательное учреждение \"Многопрофильный лицей №37\" Нижнекамского муниципального района Республики Татарстан"}]
[{"$f":"'[1]Протокол ШЭ ВОШ по предмету ЛИТ'!A99","v":98},{"$f":"'[1]Протокол ШЭ ВОШ по предмету ЛИТ'!C99","v":"Мулюкова"},{"$f":"'[1]Протокол ШЭ ВОШ по предмету ЛИТ'!D99","v":"Алия"},{"$f":"'[1]Протокол ШЭ ВОШ по предмету ЛИТ'!E99","v":"Алмазовна"},"ж",{"$f":"'[1]Протокол ШЭ ВОШ по предмету ЛИТ'!H99","v":"нет"},{"$f":"'[1]Протокол ШЭ ВОШ по предмету ЛИТ'!I99","v":9},{"$f":"'[1]Протокол ШЭ ВОШ по предмету ЛИТ'!J99","v":9},{"$f":"'[1]Протокол ШЭ ВОШ по предмету ЛИТ'!K99","v":1},{"$f":"'[1]Протокол ШЭ ВОШ по предмету ЛИТ'!L99","v":8},{"$f":"'[1]Протокол ШЭ ВОШ по предмету ЛИТ'!M99","v":"участник"},null,{"$f":"'[1]Протокол ШЭ ВОШ по предмету ЛИТ'!O99","v":"Семенова Марина Валерьевна"},{"$f":"'[1]Протокол ШЭ ВОШ по предмету ЛИТ'!P99","v":"Муниципальное бюджетное общеобразовательное учреждение \"Многопрофильный лицей №37\" Нижнекамского муниципального района Республики Татарстан"}]
[{"$f":"'[1]Протокол ШЭ ВОШ по предмету ЛИТ'!A100","v":99},{"$f":"'[1]Протокол ШЭ ВОШ по предмету ЛИТ'!C100","v":"Бобровская"},{"$f":"'[1]Протокол ШЭ ВОШ по предмету ЛИТ'!D100","v":"Алла"},{"$f":"'[1]Протокол ШЭ ВОШ по предмету ЛИТ'!E100","v":"Сергеевна"},"ж",{"$f":"'[1]Протокол ШЭ ВОШ по предмету ЛИТ'!H100","v":"нет"},{"$f":"'[1]Протокол ШЭ ВОШ по предмету ЛИТ'!I100","v":9},{"$f":"'[1]Протокол ШЭ ВОШ по предмету ЛИТ'!J100","v":9},{"$f":"'[1]Протокол ШЭ ВОШ по предмету ЛИТ'!K100","v":0},{"$f":"'[1]Протокол ШЭ ВОШ по предмету ЛИТ'!L100","v":8},{"$f":"'[1]Протокол ШЭ ВОШ по предмету ЛИТ'!M100","v":"участник"},null,{"$f":"'[1]Протокол ШЭ ВОШ по предмету ЛИТ'!O100","v":"Семенова Марина Валерьевна"},{"$f":"'[1]Протокол ШЭ ВОШ по предмету ЛИТ'!P100","v":"Муниципальное бюджетное общеобразовательное учреждение \"Многопрофильный лицей №37\" Нижнекамского муниципального района Республики Татарстан"}]
[{"$f":"'[1]Протокол ШЭ ВОШ по предмету ЛИТ'!A101","v":100},{"$f":"'[1]Протокол ШЭ ВОШ по предмету ЛИТ'!C101","v":"Гайнутдинов"},{"$f":"'[1]Протокол ШЭ ВОШ по предмету ЛИТ'!D101","v":"Самат"},{"$f":"'[1]Протокол ШЭ ВОШ по предмету ЛИТ'!E101","v":"Рустемович"},"м",{"$f":"'[1]Протокол ШЭ ВОШ по предмету ЛИТ'!H101","v":"нет"},{"$f":"'[1]Протокол ШЭ ВОШ по предмету ЛИТ'!I101","v":9},{"$f":"'[1]Протокол ШЭ ВОШ по предмету ЛИТ'!J101","v":9},{"$f":"'[1]Протокол ШЭ ВОШ по предмету ЛИТ'!K101","v":0},{"$f":"'[1]Протокол ШЭ ВОШ по предмету ЛИТ'!L101","v":8},{"$f":"'[1]Протокол ШЭ ВОШ по предмету ЛИТ'!M101","v":"участник"},null,{"$f":"'[1]Протокол ШЭ ВОШ по предмету ЛИТ'!O101","v":"Нуждина Олеся Евгеньевна"},{"$f":"'[1]Протокол ШЭ ВОШ по предмету ЛИТ'!P101","v":"Муниципальное бюджетное общеобразовательное учреждение \"Многопрофильный лицей №37\" Нижнекамского муниципального района Республики Татарстан"}]
[{"$f":"'[1]Протокол ШЭ ВОШ по предмету ЛИТ'!A102","v":101},{"$f":"'[1]Протокол ШЭ ВОШ по предмету ЛИТ'!C102","v":"Лапко"},{"$f":"'[1]Протокол ШЭ ВОШ по предмету ЛИТ'!D102","v":"Никита"},{"$f":"'[1]Протокол ШЭ ВОШ по предмету ЛИТ'!E102","v":"Сергеевич"},"м",{"$f":"'[1]Протокол ШЭ ВОШ по предмету ЛИТ'!H102","v":"нет"},{"$f":"'[1]Протокол ШЭ ВОШ по предмету ЛИТ'!I102","v":9},{"$f":"'[1]Протокол ШЭ ВОШ по предмету ЛИТ'!J102","v":9},{"$f":"'[1]Протокол ШЭ ВОШ по предмету ЛИТ'!K102","v":0},{"$f":"'[1]Протокол ШЭ ВОШ по предмету ЛИТ'!L102","v":8},{"$f":"'[1]Протокол ШЭ ВОШ по предмету ЛИТ'!M102","v":"участник"},null,{"$f":"'[1]Протокол ШЭ ВОШ по предмету ЛИТ'!O102","v":"Нуждина Олеся Евгеньевна"},{"$f":"'[1]Протокол ШЭ ВОШ по предмету ЛИТ'!P102","v":"Муниципальное бюджетное общеобразовательное учреждение \"Многопрофильный лицей №37\" Нижнекамского муниципального района Республики Татарстан"}]
[{"$f":"'[1]Протокол ШЭ ВОШ по предмету ЛИТ'!A103","v":102},{"$f":"'[1]Протокол ШЭ ВОШ по предмету ЛИТ'!C103","v":"Салахова"},{"$f":"'[1]Протокол ШЭ ВОШ по предмету ЛИТ'!D103","v":"Камилла"},{"$f":"'[1]Протокол ШЭ ВОШ по предмету ЛИТ'!E103","v":"Алмазовна"},"ж",{"$f":"'[1]Протокол ШЭ ВОШ по предмету ЛИТ'!H103","v":"нет"},{"$f":"'[1]Протокол ШЭ ВОШ по предмету ЛИТ'!I103","v":9},{"$f":"'[1]Протокол ШЭ ВОШ по предмету ЛИТ'!J103","v":9},{"$f":"'[1]Протокол ШЭ ВОШ по предмету ЛИТ'!K103","v":0},{"$f":"'[1]Протокол ШЭ ВОШ по предмету ЛИТ'!L103","v":8},{"$f":"'[1]Протокол ШЭ ВОШ по предмету ЛИТ'!M103","v":"участник"},null,{"$f":"'[1]Протокол ШЭ ВОШ по предмету ЛИТ'!O103","v":"Нуждина Олеся Евгеньевна"},{"$f":"'[1]Протокол ШЭ ВОШ по предмету ЛИТ'!P103","v":"Муниципальное бюджетное общеобразовательное учреждение \"Многопрофильный лицей №37\" Нижнекамского муниципального района Республики Татарстан"}]
[{"$f":"'[1]Протокол ШЭ ВОШ по предмету ЛИТ'!A104","v":103},{"$f":"'[1]Протокол ШЭ ВОШ по предмету ЛИТ'!C104","v":"Гарифуллина"},{"$f":"'[1]Протокол ШЭ ВОШ по предмету ЛИТ'!D104","v":"Алсу"},{"$f":"'[1]Протокол ШЭ ВОШ по предмету ЛИТ'!E104","v":"Рафисовна"},"ж",{"$f":"'[1]Протокол ШЭ ВОШ по предмету ЛИТ'!H104","v":"нет"},{"$f":"'[1]Протокол ШЭ ВОШ по предмету ЛИТ'!I104","v":9},{"$f":"'[1]Протокол ШЭ ВОШ по предмету ЛИТ'!J104","v":9},{"$f":"'[1]Протокол ШЭ ВОШ по предмету ЛИТ'!K104","v":0},{"$f":"'[1]Протокол ШЭ ВОШ по предмету ЛИТ'!L104","v":8},{"$f":"'[1]Протокол ШЭ ВОШ по предмету ЛИТ'!M104","v":"участник"},null,{"$f":"'[1]Протокол ШЭ ВОШ по предмету ЛИТ'!O104","v":"Нуждина Олеся Евгеньевна"},{"$f":"'[1]Протокол ШЭ ВОШ по предмету ЛИТ'!P104","v":"Муниципальное бюджетное общеобразовательное учреждение \"Многопрофильный лицей №37\" Нижнекамского муниципального района Республики Татарстан"}]
[104,"Исакиева","Миланья","Юрьевна","ж","нет",11,11,4,8,"призер",null,"Рахова Дарья Александровна","Муниципальное бюджетное общеобразовательное учреждение «Многопрофильный лицей №37» Нижнекамского муниципального района Республики Татарстан"]
[105,"Пархоменко","Яна","Евгеньевна","ж","нет",11,11,3,8,"участник",null,"Рахова Дарья Александровна","Муниципальное бюджетное общеобразовательное учреждение «Многопрофильный лицей №37» Нижнекамского муниципального района Республики Татарстан"]
[106,"Марков","Виктор","Валерьевич","м","нет",11,11,2,8,"участник",null,"Рахова Дарья Александровна","Муниципальное бюджетное общеобразовательное учреждение «Многопрофильный лицей №37» Нижнекамского муниципального района Республики Татарстан"]
[107,"Сибгатуллин","Марат","Фанисович","м","нет",11,11,1,8,"участник",null,"Рахова Дарья Александровна","Муниципальное бюджетное общеобразовательное учреждение «Многопрофильный лицей №37» Нижнекамского муниципального района Республики Татарстан"]
[108,"Шарафиев","Айнур","Назилевич","м","нет",11,11,2,8,"участник",null,"Рахова Дарья Александровна","Муниципальное бюджетное общеобразовательное учреждение «Многопрофильный лицей №37» Нижнекамского муниципального района Республики Татарстан"]
[109,"Юдина","Анастасия","Михайловна","ж","нет",11,11,2,8,"участник",null,"Рахова Дарья Александровна","Муниципальное бюджетное общеобразовательное учреждение «Многопрофильный лицей №37» Нижнекамского муниципального района Республики Татарстан"]

{"sheet":"data","index":1,"n_rows":25,"n_cols":10,"rows_kept":25}
[{"$nulls":6},"1 - Техника, технология и техническое творчество","2 - Культура дома, дизайн и технологии","3 - Робототехника","4 - Информационная безопасность"]
["1 - Техника, технологии и техническое творчество","1.1  Практика по ручной деревообработке",{"$nulls":4},"1.1 Практика по ручной деревообработке","2.1 Ручная обработка швейного изделия или узла","3.1 Робототехника","4.1 Не предусмотрена"]
["2 - Культура дома, дизайн и технологии","1.2 Практика по механической деревообработке",{"$nulls":4},"1.2 Практика по механической деревообработке","2.2 Механическая обработка швейного изделия или узла + Моделирование"]
["3 - Робототехника","1.3 Практика по ручной металлообработке",{"$nulls":4},"1.3 Практика по ручной металлообработке","2.3 Обработка швейного изделия или узла на швейно-вышивальном оборудовании + Моделирование"]
["4 - Информационная безопасность","1.4 Практика по механической металлообработке",{"$nulls":4},"1.4 Практика по механической металлообработке","2.4 3D-моделирование и печать"]
[null,"1.5 Электрорадиотехника",{"$nulls":4},"1.5 Электрорадиотехника","2.5 Практика по работе на лазерно-гравировальном станке"]
[null,"1.6 3D-моделирование и печать",{"$nulls":4},"1.6 3D-моделирование и печать","2.6 Промышленный дизайн"]
[null,"1.7 Практика по работе на лазерно-гравировальном станке",{"$nulls":4},"1.7 Практика по работе на лазерно-гравировальном станке"]
[null,"1.8 Промышленный дизайн",{"$nulls":4},"1.8 Промышленный дизайн"]
[null,"2.1 Ручная обработка швейного изделия или узла"]
[null,"2.2 Механическая обработка швейного изделия или узла + Моделирование",{"$nulls":6},"3.1 Робототехника","4.1 Не предусмотрена"]
[null,"2.3 Обработка швейного изделия или узла на швейно-вышивальном оборудовании + Моделирование"]
[null,"2.4 3D-моделирование и печать"]
[null,"2.5 Практика по работе на лазерно-гравировальном станке"]
[null,"2.6 Промышленный дизайн"]
[null,"3.1 Робототехника"]
[null,"4.1 Не предусмотрена"]
[]
[]
[]
[]
[]
["участник"]
["призер",null,"да","да",null,"м"]
["победитель",null,null,"нет",null,"ж"]